Department Family,Entity,Date,Expense Type,Expense Area,Supplier,Transaction Number,AP Amount
Department of Health,St. Helens&Knowsley Hospitals NHS Trust,31/01/2022,AUC Additions,Balance Sheet,VINCI CONSTRUCTION UK LTD,40579201,"121,485.76"
Department of Health,St. Helens&Knowsley Hospitals NHS Trust,31/01/2022,AUC Additions,Balance Sheet,VINCI CONSTRUCTION UK LTD,40579201,"24,297.15"
Department of Health,St. Helens&Knowsley Hospitals NHS Trust,31/01/2022,AUC Additions,Balance Sheet,VINCI CONSTRUCTION UK LTD,40943928,"6,074.29"
Department of Health,St. Helens&Knowsley Hospitals NHS Trust,31/01/2022,CNST contributions,CLINICAL NEGLIGENCE,10003266,NHSLACONT-T213,"1,454,037.00 "
Department of Health,St. Helens&Knowsley Hospitals NHS Trust,31/01/2022,Computer Hardware Purch,ETTF,VOICE CONNECT LTD,40691000,"11,250.00"
Department of Health,St. Helens&Knowsley Hospitals NHS Trust,31/01/2022,Computer Hardware Purch,ETTF,VOICE CONNECT LTD,40691000,"11,250.00"
Department of Health,St. Helens&Knowsley Hospitals NHS Trust,31/01/2022,Computer Hardware Purch,ETTF,VOICE CONNECT LTD,40691000,"4,500.00"
Department of Health,St. Helens&Knowsley Hospitals NHS Trust,31/01/2022,Computer Hardware Purch,TRUST IT SYSTEMS,HOSPEDIA LTD,40966303,"126,912.00"
Department of Health,St. Helens&Knowsley Hospitals NHS Trust,31/01/2022,Computer Hardware Purch,TRUST RECHARGES,HP INC UK LTD,41061202,"36,989.00"
Department of Health,St. Helens&Knowsley Hospitals NHS Trust,31/01/2022,Computer Hardware Purch,TRUST RECHARGES,HP INC UK LTD,41061202,"7,397.80"
Department of Health,St. Helens&Knowsley Hospitals NHS Trust,31/01/2022,Computer Maintenance,ETTF,VOICE CONNECT LTD,40691000,"2,550.00"
Department of Health,St. Helens&Knowsley Hospitals NHS Trust,31/01/2022,Computer Maintenance,MMDA PROGRAMME COSTS - SHARED SERVICES,SOFTCAT PLC,40737589,"14,100.48"
Department of Health,St. Helens&Knowsley Hospitals NHS Trust,31/01/2022,Computer Maintenance,MMDA PROGRAMME COSTS - SHARED SERVICES,SOFTCAT PLC,40737589,"22,953.52"
Department of Health,St. Helens&Knowsley Hospitals NHS Trust,31/01/2022,Computer Maintenance,MMDA PROGRAMME COSTS - SHARED SERVICES,SOFTCAT PLC,40737589,"11,412.96"
Department of Health,St. Helens&Knowsley Hospitals NHS Trust,31/01/2022,Computer Maintenance,MMDA PROGRAMME COSTS - SHARED SERVICES,SOFTCAT PLC,40737589,"9,693.39"
Department of Health,St. Helens&Knowsley Hospitals NHS Trust,31/01/2022,Computer Maintenance,TRUST IT SYSTEMS,SYSTEM C HEALTHCARE LTD,40853284,"7,138.63"
Department of Health,St. Helens&Knowsley Hospitals NHS Trust,31/01/2022,Computer Maintenance,TRUST IT SYSTEMS,SYSTEM C HEALTHCARE LTD,40853284,"296,981.88"
Department of Health,St. Helens&Knowsley Hospitals NHS Trust,31/01/2022,Computer Maintenance,TRUST IT SYSTEMS,SYSTEM C HEALTHCARE LTD,40853284,"60,824.10"
Department of Health,St. Helens&Knowsley Hospitals NHS Trust,31/01/2022,Computer Maintenance,TRUST IT SYSTEMS,SYSTEM C HEALTHCARE LTD,40853286,"49,190.03"
Department of Health,St. Helens&Knowsley Hospitals NHS Trust,31/01/2022,Computer Maintenance,TRUST IT SYSTEMS,SYSTEM C HEALTHCARE LTD,40853286,"9,838.01"
Department of Health,St. Helens&Knowsley Hospitals NHS Trust,31/01/2022,Computer Network Costs,MMDA PROGRAMME COSTS - SHARED SERVICES,BT PLC,40853004,"47,801.70"
Department of Health,St. Helens&Knowsley Hospitals NHS Trust,31/01/2022,Continence Products,COMMUNITY CONTINENCE SERVICE,ESSITY UK LTD,40997914,"39,948.35"
Department of Health,St. Helens&Knowsley Hospitals NHS Trust,31/01/2022,Contr Photocopier Rental,PURCHASING + SUPPLY DEPT,CANON UK LTD,40625931,"26,283.81"
Department of Health,St. Helens&Knowsley Hospitals NHS Trust,31/01/2022,Contr Photocopier Rental,PURCHASING + SUPPLY DEPT,CANON UK LTD,40966316,"52,085.46"
Department of Health,St. Helens&Knowsley Hospitals NHS Trust,31/01/2022,Course Fees,UROLOGY MEDICAL STAFF,EDGE HILL UNIVERSITY,40948399,"30,600.00"
Department of Health,St. Helens&Knowsley Hospitals NHS Trust,31/01/2022,Drugs,DRUGS/M+S UNALLOCATED WH,ALLIANCE HEALTHCARE DISTRIBUTION LTD,40884595,232.19
Department of Health,St. Helens&Knowsley Hospitals NHS Trust,31/01/2022,Drugs,DRUGS/M+S UNALLOCATED WH,ALLIANCE HEALTHCARE DISTRIBUTION LTD,40884595,"1,160.96"
Department of Health,St. Helens&Knowsley Hospitals NHS Trust,31/01/2022,External Contractors,MVP LEAD EMPLOYER SUPPORT,ALLOCATE SOFTWARE PLC,41078898,"27,300.00"
Department of Health,St. Helens&Knowsley Hospitals NHS Trust,31/01/2022,Funeral Expenses,PATHOLOGY GENERAL,BARRINGTONS FUNERAL SERVICES LTD,41031840,"25,050.00"
Department of Health,St. Helens&Knowsley Hospitals NHS Trust,31/01/2022,IT Additions,Balance Sheet,ILOCKERZ LTD,40753579,"28,684.00"
Department of Health,St. Helens&Knowsley Hospitals NHS Trust,31/01/2022,IT Additions,Balance Sheet,ILOCKERZ LTD,40753579,"5,736.80"
Department of Health,St. Helens&Knowsley Hospitals NHS Trust,31/01/2022,Lab Equip Maint Contracts,HAEM + BLOOD TRANSFUSION,HAEMONETICS LTD,41030389,"38,820.00"
Department of Health,St. Helens&Knowsley Hospitals NHS Trust,31/01/2022,Laboratory Chemicals,HAEM + BLOOD TRANSFUSION,SYSMEX UK LTD,40853432,"39,858.71"
Department of Health,St. Helens&Knowsley Hospitals NHS Trust,31/01/2022,Laboratory Chemicals,HAEM + BLOOD TRANSFUSION,SYSMEX UK LTD,40853432,"7,971.74"
Department of Health,St. Helens&Knowsley Hospitals NHS Trust,31/01/2022,Laboratory Chemicals,HISTOPATHOLOGY/MORTUARY,ROCHE DIAGNOSTICS LTD,40944205,"399,296.00"
Department of Health,St. Helens&Knowsley Hospitals NHS Trust,31/01/2022,Laboratory Chemicals,HISTOPATHOLOGY/MORTUARY,ROCHE DIAGNOSTICS LTD,40944205,"79,859.20"
Department of Health,St. Helens&Knowsley Hospitals NHS Trust,31/01/2022,Laboratory Equipment,MICROBIOLOGY DEPT,CHRYSTAL CONSULTING LTD,41035859,"62,895.94"
Department of Health,St. Helens&Knowsley Hospitals NHS Trust,31/01/2022,Laboratory Equipment,MICROBIOLOGY DEPT,CHRYSTAL CONSULTING LTD,41035859,"12,579.19"
Department of Health,St. Helens&Knowsley Hospitals NHS Trust,31/01/2022,Laboratory Test Kits,POINT OF CARE,CHRYSTAL CONSULTING LTD,40197641,"28,689.14"
Department of Health,St. Helens&Knowsley Hospitals NHS Trust,31/01/2022,Laboratory Test Kits,WARD 2B RESPIRATORY,CHRYSTAL CONSULTING LTD,40845011,"-38,719.67"
Department of Health,St. Helens&Knowsley Hospitals NHS Trust,31/01/2022,Laboratory Test Kits,WARD 2B RESPIRATORY,CHRYSTAL CONSULTING LTD,40845011,"-7,743.93"
Department of Health,St. Helens&Knowsley Hospitals NHS Trust,31/01/2022,Laboratory Test Kits,WARD 1C ACUTE MEDICAL UNIT,CHRYSTAL CONSULTING LTD,40845015,"38,990.40"
Department of Health,St. Helens&Knowsley Hospitals NHS Trust,31/01/2022,Laboratory Test Kits,WARD 1C ACUTE MEDICAL UNIT,CHRYSTAL CONSULTING LTD,40845015,"7,798.08"
Department of Health,St. Helens&Knowsley Hospitals NHS Trust,31/01/2022,Laboratory Test Kits,WARD 2B RESPIRATORY,CHRYSTAL CONSULTING LTD,40900895,"41,647.23"
Department of Health,St. Helens&Knowsley Hospitals NHS Trust,31/01/2022,Laboratory Test Kits,WARD 2B RESPIRATORY,CHRYSTAL CONSULTING LTD,40900895,"8,329.45"
Department of Health,St. Helens&Knowsley Hospitals NHS Trust,31/01/2022,Laboratory Test Kits,POINT OF CARE,CHRYSTAL CONSULTING LTD,40900898,"28,225.96"
Department of Health,St. Helens&Knowsley Hospitals NHS Trust,31/01/2022,Laboratory Test Kits,POINT OF CARE,CHRYSTAL CONSULTING LTD,40900898,"5,645.19"
Department of Health,St. Helens&Knowsley Hospitals NHS Trust,31/01/2022,Lease Rents,PFI DESIGN + CONSTRUCTION,MAPP PROPERTY MANAGEMENT LTD,40782801,"62,400.00"
Department of Health,St. Helens&Knowsley Hospitals NHS Trust,31/01/2022,Lease Rents,REGIONAL VACCINATION CENTRE,ST HELENS RFC LTD,40996610,"98,644.94"
Department of Health,St. Helens&Knowsley Hospitals NHS Trust,31/01/2022,Lease Rents,REGIONAL VACCINATION CENTRE,ST HELENS RFC LTD,40996610,"19,728.99"
Department of Health,St. Helens&Knowsley Hospitals NHS Trust,31/01/2022,Med & Surg Equip General,REGIONAL VACCINATION CENTRE,ST HELENS RFC LTD,40535530,"83,635.55"
Department of Health,St. Helens&Knowsley Hospitals NHS Trust,31/01/2022,Med & Surg Equip General,REGIONAL VACCINATION CENTRE,ST HELENS RFC LTD,40535530,"16,727.11"
Department of Health,St. Helens&Knowsley Hospitals NHS Trust,31/01/2022,Med & Surg Equip General,THEATRES BURNS + PLASTICS,AAH PHARMACEUTICALS LTD,40884596,8.70
Department of Health,St. Helens&Knowsley Hospitals NHS Trust,31/01/2022,Med & Surg Equip General,THEATRES BURNS + PLASTICS,AAH PHARMACEUTICALS LTD,40884596,43.50
Department of Health,St. Helens&Knowsley Hospitals NHS Trust,31/01/2022,Med & Surg Equip General,THEATRES MAIN ST HELEN'S,AAH PHARMACEUTICALS LTD,40884596,21.75
Department of Health,St. Helens&Knowsley Hospitals NHS Trust,31/01/2022,Med & Surg Equip General,THEATRES MAIN ST HELEN'S,AAH PHARMACEUTICALS LTD,40884596,108.75
Department of Health,St. Helens&Knowsley Hospitals NHS Trust,31/01/2022,Med & Surg Equip Leases,HAEM + BLOOD TRANSFUSION,SIEMENS HEALTHCARE DIAGNOSTICS LTD,40737186,"26,758.05"
Department of Health,St. Helens&Knowsley Hospitals NHS Trust,31/01/2022,Med & Surg Maint Contract,COLD DECONTAMINATION WHISTON,IM MED LTD,40770442,"30,590.38"
Department of Health,St. Helens&Knowsley Hospitals NHS Trust,31/01/2022,Med & Surg Maint Contract,COLD DECONTAMINATION WHISTON,IM MED LTD,40770442,"42,408.50"
Department of Health,St. Helens&Knowsley Hospitals NHS Trust,31/01/2022,Med Equip Additions,Balance Sheet,ERBE MEDICAL UK LTD,39917445,"23,468.64"
Department of Health,St. Helens&Knowsley Hospitals NHS Trust,31/01/2022,Med Equip Additions,Balance Sheet,ERBE MEDICAL UK LTD,39917445,"4,693.74"
Department of Health,St. Helens&Knowsley Hospitals NHS Trust,31/01/2022,Med Equip Additions,Balance Sheet,GE MEDICAL SYSTEMS LTD,40737187,"54,207.00"
Department of Health,St. Helens&Knowsley Hospitals NHS Trust,31/01/2022,Med Equip Additions,Balance Sheet,GE MEDICAL SYSTEMS LTD,40737187,"10,841.40"
Department of Health,St. Helens&Knowsley Hospitals NHS Trust,31/01/2022,Med Equip Additions,Balance Sheet,MEDTRONIC LTD,40853280,"10,497.90"
Department of Health,St. Helens&Knowsley Hospitals NHS Trust,31/01/2022,Med Equip Additions,Balance Sheet,MEDTRONIC LTD,40853280,"14,175.00"
Department of Health,St. Helens&Knowsley Hospitals NHS Trust,31/01/2022,Med Equip Additions,Balance Sheet,MEDTRONIC LTD,40853280,"4,934.58"
Department of Health,St. Helens&Knowsley Hospitals NHS Trust,31/01/2022,Med Equip Additions,Balance Sheet,DRAEGER MEDICAL UK LTD,40888509,"47,477.69"
Department of Health,St. Helens&Knowsley Hospitals NHS Trust,31/01/2022,Med Equip Additions,Balance Sheet,MINDRAY (UK) LTD,40926467,285.00
Department of Health,St. Helens&Knowsley Hospitals NHS Trust,31/01/2022,Med Equip Additions,Balance Sheet,MINDRAY (UK) LTD,40926467,"1,339.50"
Department of Health,St. Helens&Knowsley Hospitals NHS Trust,31/01/2022,Med Equip Additions,Balance Sheet,MINDRAY (UK) LTD,40926467,168.75
Department of Health,St. Helens&Knowsley Hospitals NHS Trust,31/01/2022,Med Equip Additions,Balance Sheet,MINDRAY (UK) LTD,40926467,168.75
Department of Health,St. Helens&Knowsley Hospitals NHS Trust,31/01/2022,Med Equip Additions,Balance Sheet,MINDRAY (UK) LTD,40926467,"1,586.25"
Department of Health,St. Helens&Knowsley Hospitals NHS Trust,31/01/2022,Med Equip Additions,Balance Sheet,MINDRAY (UK) LTD,40926467,"1,233.75"
Department of Health,St. Helens&Knowsley Hospitals NHS Trust,31/01/2022,Med Equip Additions,Balance Sheet,MINDRAY (UK) LTD,40926467,"6,855.12"
Department of Health,St. Helens&Knowsley Hospitals NHS Trust,31/01/2022,Med Equip Additions,Balance Sheet,MINDRAY (UK) LTD,40926467,"2,625.00"
Department of Health,St. Helens&Knowsley Hospitals NHS Trust,31/01/2022,Med Equip Additions,Balance Sheet,MINDRAY (UK) LTD,40926467,165.00
Department of Health,St. Helens&Knowsley Hospitals NHS Trust,31/01/2022,Med Equip Additions,Balance Sheet,MINDRAY (UK) LTD,40926467,"120,056.80"
Department of Health,St. Helens&Knowsley Hospitals NHS Trust,31/01/2022,Med Equip Additions,Balance Sheet,MINDRAY (UK) LTD,40926467,"20,300.00"
Department of Health,St. Helens&Knowsley Hospitals NHS Trust,31/01/2022,Med Equip Additions,Balance Sheet,MINDRAY (UK) LTD,40926467,"4,950.00"
Department of Health,St. Helens&Knowsley Hospitals NHS Trust,31/01/2022,Med Equip Additions,Balance Sheet,MINDRAY (UK) LTD,40926467,"1,631.25"
Department of Health,St. Helens&Knowsley Hospitals NHS Trust,31/01/2022,Med Equip Additions,Balance Sheet,MINDRAY (UK) LTD,40926467,"2,958.00"
Department of Health,St. Helens&Knowsley Hospitals NHS Trust,31/01/2022,Med Equip Additions,Balance Sheet,MINDRAY (UK) LTD,40926467,"35,550.00"
Department of Health,St. Helens&Knowsley Hospitals NHS Trust,31/01/2022,Med Equip Additions,Balance Sheet,MINDRAY (UK) LTD,40926467,405.00
Department of Health,St. Helens&Knowsley Hospitals NHS Trust,31/01/2022,Med Equip Additions,Balance Sheet,MINDRAY (UK) LTD,40926467,"1,175.00"
Department of Health,St. Helens&Knowsley Hospitals NHS Trust,31/01/2022,Med Equip Additions,Balance Sheet,MINDRAY (UK) LTD,40926467,884.52
Department of Health,St. Helens&Knowsley Hospitals NHS Trust,31/01/2022,Med Equip Additions,Balance Sheet,MINDRAY (UK) LTD,40926467,"148,905.40"
Department of Health,St. Helens&Knowsley Hospitals NHS Trust,31/01/2022,Med Equip Additions,Balance Sheet,MINDRAY (UK) LTD,40926467,"27,000.00"
Department of Health,St. Helens&Knowsley Hospitals NHS Trust,31/01/2022,Med Equip Additions,Balance Sheet,MINDRAY (UK) LTD,40926467,281.25
Department of Health,St. Helens&Knowsley Hospitals NHS Trust,31/01/2022,Med Equip Additions,Balance Sheet,MINDRAY (UK) LTD,40926467,"2,643.75"
Department of Health,St. Helens&Knowsley Hospitals NHS Trust,31/01/2022,Med Equip Additions,Balance Sheet,MINDRAY (UK) LTD,40926467,281.25
Department of Health,St. Helens&Knowsley Hospitals NHS Trust,31/01/2022,Med Equip Additions,Balance Sheet,MINDRAY (UK) LTD,40926467,643.50
Department of Health,St. Helens&Knowsley Hospitals NHS Trust,31/01/2022,Med Equip Additions,Balance Sheet,MINDRAY (UK) LTD,40926467,540.00
Department of Health,St. Helens&Knowsley Hospitals NHS Trust,31/01/2022,Med Equip Additions,Balance Sheet,MINDRAY (UK) LTD,40926467,"1,163.25"
Department of Health,St. Helens&Knowsley Hospitals NHS Trust,31/01/2022,Med Equip Additions,Balance Sheet,MINDRAY (UK) LTD,40926467,543.75
Department of Health,St. Helens&Knowsley Hospitals NHS Trust,31/01/2022,Med Equip Additions,Balance Sheet,MINDRAY (UK) LTD,40926467,"76,867.97"
Department of Health,St. Helens&Knowsley Hospitals NHS Trust,31/01/2022,Miscellaneous Expenditure,BEVAN COURT FM,NEW HOSPITALS (ST HELENS & KNOWSLEY) LTD,40782800,"72,482.97"
Department of Health,St. Helens&Knowsley Hospitals NHS Trust,31/01/2022,Miscellaneous Expenditure,HSDU WHISTON,SYNERGY HEALTH (UK) LTD,40853029,"178,291.49"
Department of Health,St. Helens&Knowsley Hospitals NHS Trust,31/01/2022,Miscellaneous Expenditure,PFI UNITARY PAYMENT,NEW HOSPITALS (ST HELENS & KNOWSLEY) LTD,40877297,"13,159,431.33"
Department of Health,St. Helens&Knowsley Hospitals NHS Trust,31/01/2022,Mobile Phones,A + E MEDICAL STAFF WH,VODAFONE LTD,40911882,8.45
Department of Health,St. Helens&Knowsley Hospitals NHS Trust,31/01/2022,Mobile Phones,A + E MEDICAL STAFF WH,VODAFONE LTD,40911882,42.26
Department of Health,St. Helens&Knowsley Hospitals NHS Trust,31/01/2022,Mobile Phones,A + E NURSING WHISTON,VODAFONE LTD,40911882,6.31
Department of Health,St. Helens&Knowsley Hospitals NHS Trust,31/01/2022,Mobile Phones,A + E NURSING WHISTON,VODAFONE LTD,40911882,31.56
Department of Health,St. Helens&Knowsley Hospitals NHS Trust,31/01/2022,Mobile Phones,ACUTE KIDNEY INJURY SERVICE,VODAFONE LTD,40911882,6.15
Department of Health,St. Helens&Knowsley Hospitals NHS Trust,31/01/2022,Mobile Phones,ACUTE KIDNEY INJURY SERVICE,VODAFONE LTD,40911882,30.73
Department of Health,St. Helens&Knowsley Hospitals NHS Trust,31/01/2022,Mobile Phones,AMU NURSE SPECIALISTS,VODAFONE LTD,40911882,36.00
Department of Health,St. Helens&Knowsley Hospitals NHS Trust,31/01/2022,Mobile Phones,AMU NURSE SPECIALISTS,VODAFONE LTD,40911882,180.00
Department of Health,St. Helens&Knowsley Hospitals NHS Trust,31/01/2022,Mobile Phones,ANTI-COAGULATION NURSING TEAM,VODAFONE LTD,40911882,6.00
Department of Health,St. Helens&Knowsley Hospitals NHS Trust,31/01/2022,Mobile Phones,ANTI-COAGULATION NURSING TEAM,VODAFONE LTD,40911882,30.00
Department of Health,St. Helens&Knowsley Hospitals NHS Trust,31/01/2022,Mobile Phones,B + P MEDICAL PHOTOGRAPHY,VODAFONE LTD,40911882,12.00
Department of Health,St. Helens&Knowsley Hospitals NHS Trust,31/01/2022,Mobile Phones,B + P MEDICAL PHOTOGRAPHY,VODAFONE LTD,40911882,60.00
Department of Health,St. Helens&Knowsley Hospitals NHS Trust,31/01/2022,Mobile Phones,B + P MEDICAL STAFF,VODAFONE LTD,40911882,106.77
Department of Health,St. Helens&Knowsley Hospitals NHS Trust,31/01/2022,Mobile Phones,BD INCOME-NON PARTNERS,VODAFONE LTD,40911882,9.68
Department of Health,St. Helens&Knowsley Hospitals NHS Trust,31/01/2022,Mobile Phones,BD INCOME-NON PARTNERS,VODAFONE LTD,40911882,48.39
Department of Health,St. Helens&Knowsley Hospitals NHS Trust,31/01/2022,Mobile Phones,BED MANAGEMENT,VODAFONE LTD,40911882,12.00
Department of Health,St. Helens&Knowsley Hospitals NHS Trust,31/01/2022,Mobile Phones,BED MANAGEMENT,VODAFONE LTD,40911882,60.00
Department of Health,St. Helens&Knowsley Hospitals NHS Trust,31/01/2022,Mobile Phones,BEVAN COURT 1,VODAFONE LTD,40911882,7.50
Department of Health,St. Helens&Knowsley Hospitals NHS Trust,31/01/2022,Mobile Phones,BEVAN COURT 1,VODAFONE LTD,40911882,37.50
Department of Health,St. Helens&Knowsley Hospitals NHS Trust,31/01/2022,Mobile Phones,BEVAN COURT 2,VODAFONE LTD,40911882,24.38
Department of Health,St. Helens&Knowsley Hospitals NHS Trust,31/01/2022,Mobile Phones,BEVAN COURT 2,VODAFONE LTD,40911882,121.89
Department of Health,St. Helens&Knowsley Hospitals NHS Trust,31/01/2022,Mobile Phones,BREAST SURGERY,VODAFONE LTD,40911882,1.50
Department of Health,St. Helens&Knowsley Hospitals NHS Trust,31/01/2022,Mobile Phones,BREAST SURGERY,VODAFONE LTD,40911882,7.50
Department of Health,St. Helens&Knowsley Hospitals NHS Trust,31/01/2022,Mobile Phones,BUSINESS RELATIONSHIPS,VODAFONE LTD,40911882,6.00
Department of Health,St. Helens&Knowsley Hospitals NHS Trust,31/01/2022,Mobile Phones,BUSINESS RELATIONSHIPS,VODAFONE LTD,40911882,30.00
Department of Health,St. Helens&Knowsley Hospitals NHS Trust,31/01/2022,Mobile Phones,C.O.P.D SERVICE (KPCT),VODAFONE LTD,40911882,1.50
Department of Health,St. Helens&Knowsley Hospitals NHS Trust,31/01/2022,Mobile Phones,C.O.P.D SERVICE (KPCT),VODAFONE LTD,40911882,7.50
Department of Health,St. Helens&Knowsley Hospitals NHS Trust,31/01/2022,Mobile Phones,C.O.P.D SERVICE (STHPCT),VODAFONE LTD,40911882,227.10
Department of Health,St. Helens&Knowsley Hospitals NHS Trust,31/01/2022,Mobile Phones,C.O.P.D SERVICE (STHPCT),VODAFONE LTD,40911882,"1,135.49"
Department of Health,St. Helens&Knowsley Hospitals NHS Trust,31/01/2022,Mobile Phones,CANCER CORE STAFF AND NON-PAY,VODAFONE LTD,40911882,12.00
Department of Health,St. Helens&Knowsley Hospitals NHS Trust,31/01/2022,Mobile Phones,CANCER CORE STAFF AND NON-PAY,VODAFONE LTD,40911882,60.00
Department of Health,St. Helens&Knowsley Hospitals NHS Trust,31/01/2022,Mobile Phones,CANCER NURSE SPEC MCG,VODAFONE LTD,40911882,12.00
Department of Health,St. Helens&Knowsley Hospitals NHS Trust,31/01/2022,Mobile Phones,CANCER NURSE SPEC MCG,VODAFONE LTD,40911882,60.00
Department of Health,St. Helens&Knowsley Hospitals NHS Trust,31/01/2022,Mobile Phones,CANCER NURSE SPEC SCG,VODAFONE LTD,40911882,15.00
Department of Health,St. Helens&Knowsley Hospitals NHS Trust,31/01/2022,Mobile Phones,CANCER NURSE SPEC SCG,VODAFONE LTD,40911882,75.00
Department of Health,St. Helens&Knowsley Hospitals NHS Trust,31/01/2022,Mobile Phones,CANCER SERVICES - ADMIN,VODAFONE LTD,40911882,8.40
Department of Health,St. Helens&Knowsley Hospitals NHS Trust,31/01/2022,Mobile Phones,CANCER SERVICES - ADMIN,VODAFONE LTD,40911882,42.00
Department of Health,St. Helens&Knowsley Hospitals NHS Trust,31/01/2022,Mobile Phones,CANCER SVS CO-ORDINATION,VODAFONE LTD,40911882,39.06
Department of Health,St. Helens&Knowsley Hospitals NHS Trust,31/01/2022,Mobile Phones,CANCER SVS CO-ORDINATION,VODAFONE LTD,40911882,195.30
Department of Health,St. Helens&Knowsley Hospitals NHS Trust,31/01/2022,Mobile Phones,CARDIO-RESPIRATORY (ECG),VODAFONE LTD,40911882,7.50
Department of Health,St. Helens&Knowsley Hospitals NHS Trust,31/01/2022,Mobile Phones,CARDIO-RESPIRATORY (ECG),VODAFONE LTD,40911882,37.50
Department of Health,St. Helens&Knowsley Hospitals NHS Trust,31/01/2022,Mobile Phones,CARDIOLOGY NURSING,VODAFONE LTD,40911882,29.40
Department of Health,St. Helens&Knowsley Hospitals NHS Trust,31/01/2022,Mobile Phones,CARDIOLOGY NURSING,VODAFONE LTD,40911882,147.00
Department of Health,St. Helens&Knowsley Hospitals NHS Trust,31/01/2022,Mobile Phones,CARDIOLOGY SNR MEDICAL,VODAFONE LTD,40911882,13.50
Department of Health,St. Helens&Knowsley Hospitals NHS Trust,31/01/2022,Mobile Phones,CARDIOLOGY SNR MEDICAL,VODAFONE LTD,40911882,67.50
Department of Health,St. Helens&Knowsley Hospitals NHS Trust,31/01/2022,Mobile Phones,CARE OF ELDERLY MED STAFF,VODAFONE LTD,40911882,112.67
Department of Health,St. Helens&Knowsley Hospitals NHS Trust,31/01/2022,Mobile Phones,CARE OF ELDERLY MED STAFF,VODAFONE LTD,40911882,563.36
Department of Health,St. Helens&Knowsley Hospitals NHS Trust,31/01/2022,Mobile Phones,CHAIRMAN'S OFFICE,VODAFONE LTD,40911882,42.05
Department of Health,St. Helens&Knowsley Hospitals NHS Trust,31/01/2022,Mobile Phones,CHAIRMAN'S OFFICE,VODAFONE LTD,40911882,210.24
Department of Health,St. Helens&Knowsley Hospitals NHS Trust,31/01/2022,Mobile Phones,CHIEF EXECUTIVE'S OFFICE,VODAFONE LTD,40911882,158.16
Department of Health,St. Helens&Knowsley Hospitals NHS Trust,31/01/2022,Mobile Phones,CHIEF EXECUTIVE'S OFFICE,VODAFONE LTD,40911882,790.81
Department of Health,St. Helens&Knowsley Hospitals NHS Trust,31/01/2022,Mobile Phones,CLINICAL GOVERNANCE TEAM,VODAFONE LTD,40911882,10.50
Department of Health,St. Helens&Knowsley Hospitals NHS Trust,31/01/2022,Mobile Phones,CLINICAL GOVERNANCE TEAM,VODAFONE LTD,40911882,52.50
Department of Health,St. Helens&Knowsley Hospitals NHS Trust,31/01/2022,Mobile Phones,CLINICAL PSYCHOLOGY,VODAFONE LTD,40911882,28.50
Department of Health,St. Helens&Knowsley Hospitals NHS Trust,31/01/2022,Mobile Phones,CLINICAL PSYCHOLOGY,VODAFONE LTD,40911882,142.50
Department of Health,St. Helens&Knowsley Hospitals NHS Trust,31/01/2022,Mobile Phones,CLINICAL SUPPORT DIV MGMT,VODAFONE LTD,40911882,42.00
Department of Health,St. Helens&Knowsley Hospitals NHS Trust,31/01/2022,Mobile Phones,CLINICAL SUPPORT DIV MGMT,VODAFONE LTD,40911882,210.00
Department of Health,St. Helens&Knowsley Hospitals NHS Trust,31/01/2022,Mobile Phones,COE NURSE SPECIALISTS,VODAFONE LTD,40911882,19.50
Department of Health,St. Helens&Knowsley Hospitals NHS Trust,31/01/2022,Mobile Phones,COE NURSE SPECIALISTS,VODAFONE LTD,40911882,97.50
Department of Health,St. Helens&Knowsley Hospitals NHS Trust,31/01/2022,Mobile Phones,COLD DECONTAMINATION,VODAFONE LTD,40911882,6.00
Department of Health,St. Helens&Knowsley Hospitals NHS Trust,31/01/2022,Mobile Phones,COLD DECONTAMINATION,VODAFONE LTD,40911882,30.00
Department of Health,St. Helens&Knowsley Hospitals NHS Trust,31/01/2022,Mobile Phones,COLD DECONTAMINATION WHISTON,VODAFONE LTD,40911882,7.50
Department of Health,St. Helens&Knowsley Hospitals NHS Trust,31/01/2022,Mobile Phones,COLD DECONTAMINATION WHISTON,VODAFONE LTD,40911882,37.50
Department of Health,St. Helens&Knowsley Hospitals NHS Trust,31/01/2022,Mobile Phones,COMMUNICATIONS,VODAFONE LTD,40911882,73.13
Department of Health,St. Helens&Knowsley Hospitals NHS Trust,31/01/2022,Mobile Phones,COMMUNICATIONS,VODAFONE LTD,40911882,365.63
Department of Health,St. Helens&Knowsley Hospitals NHS Trust,31/01/2022,Mobile Phones,COMMUNITY CARDIAC TEAM,VODAFONE LTD,40911882,59.40
Department of Health,St. Helens&Knowsley Hospitals NHS Trust,31/01/2022,Mobile Phones,COMMUNITY CARDIAC TEAM,VODAFONE LTD,40911882,297.00
Department of Health,St. Helens&Knowsley Hospitals NHS Trust,31/01/2022,Mobile Phones,COMMUNITY CONTINENCE SERVICE,VODAFONE LTD,40911882,30.18
Department of Health,St. Helens&Knowsley Hospitals NHS Trust,31/01/2022,Mobile Phones,COMMUNITY CONTINENCE SERVICE,VODAFONE LTD,40911882,150.91
Department of Health,St. Helens&Knowsley Hospitals NHS Trust,31/01/2022,Mobile Phones,COMMUNITY FRAILTY SERVICE,VODAFONE LTD,40911882,80.75
Department of Health,St. Helens&Knowsley Hospitals NHS Trust,31/01/2022,Mobile Phones,COMMUNITY FRAILTY SERVICE,VODAFONE LTD,40911882,403.75
Department of Health,St. Helens&Knowsley Hospitals NHS Trust,31/01/2022,Mobile Phones,COMMUNITY MATRON,VODAFONE LTD,40911882,53.54
Department of Health,St. Helens&Knowsley Hospitals NHS Trust,31/01/2022,Mobile Phones,COMMUNITY MATRON,VODAFONE LTD,40911882,267.73
Department of Health,St. Helens&Knowsley Hospitals NHS Trust,31/01/2022,Mobile Phones,COMMUNITY MIDWIFERY,VODAFONE LTD,40911882,691.72
Department of Health,St. Helens&Knowsley Hospitals NHS Trust,31/01/2022,Mobile Phones,COMMUNITY MIDWIFERY,VODAFONE LTD,40911882,"3,458.63"
Department of Health,St. Helens&Knowsley Hospitals NHS Trust,31/01/2022,Mobile Phones,COMMUNITY NURSING MANAGEMENT,VODAFONE LTD,40911882,6.07
Department of Health,St. Helens&Knowsley Hospitals NHS Trust,31/01/2022,Mobile Phones,COMMUNITY NURSING MANAGEMENT,VODAFONE LTD,40911882,30.35
Department of Health,St. Helens&Knowsley Hospitals NHS Trust,31/01/2022,Mobile Phones,COMMUNITY PAEDIATRICS,VODAFONE LTD,40911882,152.28
Department of Health,St. Helens&Knowsley Hospitals NHS Trust,31/01/2022,Mobile Phones,COMMUNITY PAEDIATRICS,VODAFONE LTD,40911882,761.38
Department of Health,St. Helens&Knowsley Hospitals NHS Trust,31/01/2022,Mobile Phones,COMMUNITY SERVICES MANAGEMENT,VODAFONE LTD,40911882,53.26
Department of Health,St. Helens&Knowsley Hospitals NHS Trust,31/01/2022,Mobile Phones,COMMUNITY SERVICES MANAGEMENT,VODAFONE LTD,40911882,266.32
Department of Health,St. Helens&Knowsley Hospitals NHS Trust,31/01/2022,Mobile Phones,COMMUNITY SLA'S,VODAFONE LTD,40911882,24.00
Department of Health,St. Helens&Knowsley Hospitals NHS Trust,31/01/2022,Mobile Phones,COMMUNITY SLA'S,VODAFONE LTD,40911882,120.00
Department of Health,St. Helens&Knowsley Hospitals NHS Trust,31/01/2022,Mobile Phones,COMPLAINTS,VODAFONE LTD,40911882,32.40
Department of Health,St. Helens&Knowsley Hospitals NHS Trust,31/01/2022,Mobile Phones,COMPLAINTS,VODAFONE LTD,40911882,162.00
Department of Health,St. Helens&Knowsley Hospitals NHS Trust,31/01/2022,Mobile Phones,COVID,VODAFONE LTD,40911882,55.29
Department of Health,St. Helens&Knowsley Hospitals NHS Trust,31/01/2022,Mobile Phones,COVID,VODAFONE LTD,40911882,276.46
Department of Health,St. Helens&Knowsley Hospitals NHS Trust,31/01/2022,Mobile Phones,DELIVERY SUITE,VODAFONE LTD,40911882,1.50
Department of Health,St. Helens&Knowsley Hospitals NHS Trust,31/01/2022,Mobile Phones,DELIVERY SUITE,VODAFONE LTD,40911882,7.50
Department of Health,St. Helens&Knowsley Hospitals NHS Trust,31/01/2022,Mobile Phones,DIABETES NURSING,VODAFONE LTD,40911882,12.50
Department of Health,St. Helens&Knowsley Hospitals NHS Trust,31/01/2022,Mobile Phones,DIABETES NURSING,VODAFONE LTD,40911882,62.48
Department of Health,St. Helens&Knowsley Hospitals NHS Trust,31/01/2022,Mobile Phones,DIABETES SNR MEDICAL,VODAFONE LTD,40911882,12.00
Department of Health,St. Helens&Knowsley Hospitals NHS Trust,31/01/2022,Mobile Phones,DIABETES SNR MEDICAL,VODAFONE LTD,40911882,60.00
Department of Health,St. Helens&Knowsley Hospitals NHS Trust,31/01/2022,Mobile Phones,DIABETES STP,VODAFONE LTD,40911882,72.06
Department of Health,St. Helens&Knowsley Hospitals NHS Trust,31/01/2022,Mobile Phones,DIABETES STP,VODAFONE LTD,40911882,360.30
Department of Health,St. Helens&Knowsley Hospitals NHS Trust,31/01/2022,Mobile Phones,DIGITAL ASPIRATION PRGRME,VODAFONE LTD,40911882,6.00
Department of Health,St. Helens&Knowsley Hospitals NHS Trust,31/01/2022,Mobile Phones,DIGITAL ASPIRATION PRGRME,VODAFONE LTD,40911882,30.00
Department of Health,St. Helens&Knowsley Hospitals NHS Trust,31/01/2022,Mobile Phones,DN CENTRAL,VODAFONE LTD,40911882,125.41
Department of Health,St. Helens&Knowsley Hospitals NHS Trust,31/01/2022,Mobile Phones,DN CENTRAL,VODAFONE LTD,40911882,627.06
Department of Health,St. Helens&Knowsley Hospitals NHS Trust,31/01/2022,Mobile Phones,DN HAYDOCK AND NEWTON,VODAFONE LTD,40911882,189.51
Department of Health,St. Helens&Knowsley Hospitals NHS Trust,31/01/2022,Mobile Phones,DN HAYDOCK AND NEWTON,VODAFONE LTD,40911882,947.54
Department of Health,St. Helens&Knowsley Hospitals NHS Trust,31/01/2022,Mobile Phones,DN NORTH,VODAFONE LTD,40911882,9.85
Department of Health,St. Helens&Knowsley Hospitals NHS Trust,31/01/2022,Mobile Phones,DN NORTH,VODAFONE LTD,40911882,49.25
Department of Health,St. Helens&Knowsley Hospitals NHS Trust,31/01/2022,Mobile Phones,DN SOUTH,VODAFONE LTD,40911882,235.73
Department of Health,St. Helens&Knowsley Hospitals NHS Trust,31/01/2022,Mobile Phones,DN SOUTH,VODAFONE LTD,40911882,"1,178.63"
Department of Health,St. Helens&Knowsley Hospitals NHS Trust,31/01/2022,Mobile Phones,DN St Helens OOH,VODAFONE LTD,40911882,34.57
Department of Health,St. Helens&Knowsley Hospitals NHS Trust,31/01/2022,Mobile Phones,DN St Helens OOH,VODAFONE LTD,40911882,172.87
Department of Health,St. Helens&Knowsley Hospitals NHS Trust,31/01/2022,Mobile Phones,DUFFY SUITE INTERMEDIATE CARE UNIT,VODAFONE LTD,40911882,6.00
Department of Health,St. Helens&Knowsley Hospitals NHS Trust,31/01/2022,Mobile Phones,DUFFY SUITE INTERMEDIATE CARE UNIT,VODAFONE LTD,40911882,30.00
Department of Health,St. Helens&Knowsley Hospitals NHS Trust,31/01/2022,Mobile Phones,EMERGENCY PLANNING,VODAFONE LTD,40911882,6.00
Department of Health,St. Helens&Knowsley Hospitals NHS Trust,31/01/2022,Mobile Phones,EMERGENCY PLANNING,VODAFONE LTD,40911882,30.00
Department of Health,St. Helens&Knowsley Hospitals NHS Trust,31/01/2022,Mobile Phones,EPMA,VODAFONE LTD,40911882,18.00
Department of Health,St. Helens&Knowsley Hospitals NHS Trust,31/01/2022,Mobile Phones,EPMA,VODAFONE LTD,40911882,90.00
Department of Health,St. Helens&Knowsley Hospitals NHS Trust,31/01/2022,Mobile Phones,ESTATE SURVEY SECTION,VODAFONE LTD,40911882,6.00
Department of Health,St. Helens&Knowsley Hospitals NHS Trust,31/01/2022,Mobile Phones,ESTATE SURVEY SECTION,VODAFONE LTD,40911882,30.00
Department of Health,St. Helens&Knowsley Hospitals NHS Trust,31/01/2022,Mobile Phones,EXECUTIVE PAYROLL,VODAFONE LTD,40911882,66.68
Department of Health,St. Helens&Knowsley Hospitals NHS Trust,31/01/2022,Mobile Phones,EXECUTIVE PAYROLL,VODAFONE LTD,40911882,333.39
Department of Health,St. Helens&Knowsley Hospitals NHS Trust,31/01/2022,Mobile Phones,FACILITIES MANAGEMENT,VODAFONE LTD,40911882,60.60
Department of Health,St. Helens&Knowsley Hospitals NHS Trust,31/01/2022,Mobile Phones,FACILITIES MANAGEMENT,VODAFONE LTD,40911882,302.98
Department of Health,St. Helens&Knowsley Hospitals NHS Trust,31/01/2022,Mobile Phones,FALLS NURSE,VODAFONE LTD,40911882,7.63
Department of Health,St. Helens&Knowsley Hospitals NHS Trust,31/01/2022,Mobile Phones,FALLS NURSE,VODAFONE LTD,40911882,38.15
Department of Health,St. Helens&Knowsley Hospitals NHS Trust,31/01/2022,Mobile Phones,FINANCE DIRECTORATE HQ,VODAFONE LTD,40911882,112.80
Department of Health,St. Helens&Knowsley Hospitals NHS Trust,31/01/2022,Mobile Phones,FINANCE DIRECTORATE HQ,VODAFONE LTD,40911882,564.00
Department of Health,St. Helens&Knowsley Hospitals NHS Trust,31/01/2022,Mobile Phones,GASTRO UPPER GI FUND,VODAFONE LTD,40911882,6.00
Department of Health,St. Helens&Knowsley Hospitals NHS Trust,31/01/2022,Mobile Phones,GASTRO UPPER GI FUND,VODAFONE LTD,40911882,30.00
Department of Health,St. Helens&Knowsley Hospitals NHS Trust,31/01/2022,Mobile Phones,GASTROLOGY NURSING,VODAFONE LTD,40911882,63.00
Department of Health,St. Helens&Knowsley Hospitals NHS Trust,31/01/2022,Mobile Phones,GASTROLOGY NURSING,VODAFONE LTD,40911882,315.00
Department of Health,St. Helens&Knowsley Hospitals NHS Trust,31/01/2022,Mobile Phones,GASTROLOGY SNR MEDICAL,VODAFONE LTD,40911882,50.03
Department of Health,St. Helens&Knowsley Hospitals NHS Trust,31/01/2022,Mobile Phones,GASTROLOGY SNR MEDICAL,VODAFONE LTD,40911882,250.17
Department of Health,St. Helens&Knowsley Hospitals NHS Trust,31/01/2022,Mobile Phones,GEN MED ENDOSCOPY H2,VODAFONE LTD,40911882,6.00
Department of Health,St. Helens&Knowsley Hospitals NHS Trust,31/01/2022,Mobile Phones,GEN MED ENDOSCOPY H2,VODAFONE LTD,40911882,30.00
Department of Health,St. Helens&Knowsley Hospitals NHS Trust,31/01/2022,Mobile Phones,GEN MEDICINE MEDICAL STF,VODAFONE LTD,40911882,25.50
Department of Health,St. Helens&Knowsley Hospitals NHS Trust,31/01/2022,Mobile Phones,GEN MEDICINE MEDICAL STF,VODAFONE LTD,40911882,127.50
Department of Health,St. Helens&Knowsley Hospitals NHS Trust,31/01/2022,Mobile Phones,GENERAL SURGERY MEDICAL,VODAFONE LTD,40911882,25.50
Department of Health,St. Helens&Knowsley Hospitals NHS Trust,31/01/2022,Mobile Phones,GENERAL SURGERY MEDICAL,VODAFONE LTD,40911882,127.50
Department of Health,St. Helens&Knowsley Hospitals NHS Trust,31/01/2022,Mobile Phones,GYNAE OUTPATIEN ST HELENS,VODAFONE LTD,40911882,6.00
Department of Health,St. Helens&Knowsley Hospitals NHS Trust,31/01/2022,Mobile Phones,GYNAE OUTPATIEN ST HELENS,VODAFONE LTD,40911882,30.00
Department of Health,St. Helens&Knowsley Hospitals NHS Trust,31/01/2022,Mobile Phones,HAEM + BLOOD TRANSFUSION,VODAFONE LTD,40911882,25.20
Department of Health,St. Helens&Knowsley Hospitals NHS Trust,31/01/2022,Mobile Phones,HAEM + BLOOD TRANSFUSION,VODAFONE LTD,40911882,126.00
Department of Health,St. Helens&Knowsley Hospitals NHS Trust,31/01/2022,Mobile Phones,HAEMATOLOGY MEDICAL,VODAFONE LTD,40911882,31.50
Department of Health,St. Helens&Knowsley Hospitals NHS Trust,31/01/2022,Mobile Phones,HAEMATOLOGY MEDICAL,VODAFONE LTD,40911882,157.50
Department of Health,St. Helens&Knowsley Hospitals NHS Trust,31/01/2022,Mobile Phones,HISTOPATHOLOGY/MORTUARY,VODAFONE LTD,40911882,3.06
Department of Health,St. Helens&Knowsley Hospitals NHS Trust,31/01/2022,Mobile Phones,HISTOPATHOLOGY/MORTUARY,VODAFONE LTD,40911882,15.30
Department of Health,St. Helens&Knowsley Hospitals NHS Trust,31/01/2022,Mobile Phones,HOSPITAL DISCHARGE TEAM,VODAFONE LTD,40911882,6.00
Department of Health,St. Helens&Knowsley Hospitals NHS Trust,31/01/2022,Mobile Phones,HOSPITAL DISCHARGE TEAM,VODAFONE LTD,40911882,30.00
Department of Health,St. Helens&Knowsley Hospitals NHS Trust,31/01/2022,Mobile Phones,HUMAN RESOURCES - CORE HR,VODAFONE LTD,40911882,56.48
Department of Health,St. Helens&Knowsley Hospitals NHS Trust,31/01/2022,Mobile Phones,HUMAN RESOURCES - CORE HR,VODAFONE LTD,40911882,282.38
Department of Health,St. Helens&Knowsley Hospitals NHS Trust,31/01/2022,Mobile Phones,HUMAN RESOURCES - RESOURCING,VODAFONE LTD,40911882,307.54
Department of Health,St. Helens&Knowsley Hospitals NHS Trust,31/01/2022,Mobile Phones,HUMAN RESOURCES - RESOURCING,VODAFONE LTD,40911882,"1,537.68"
Department of Health,St. Helens&Knowsley Hospitals NHS Trust,31/01/2022,Mobile Phones,I T EXECUTIVE,VODAFONE LTD,40911882,16.00
Department of Health,St. Helens&Knowsley Hospitals NHS Trust,31/01/2022,Mobile Phones,I T EXECUTIVE,VODAFONE LTD,40911882,80.00
Department of Health,St. Helens&Knowsley Hospitals NHS Trust,31/01/2022,Mobile Phones,ICU MEDICAL STAFF WHISTON,VODAFONE LTD,40911882,29.30
Department of Health,St. Helens&Knowsley Hospitals NHS Trust,31/01/2022,Mobile Phones,ICU MEDICAL STAFF WHISTON,VODAFONE LTD,40911882,146.51
Department of Health,St. Helens&Knowsley Hospitals NHS Trust,31/01/2022,Mobile Phones,ICU NURSING WHISTON,VODAFONE LTD,40911882,1.50
Department of Health,St. Helens&Knowsley Hospitals NHS Trust,31/01/2022,Mobile Phones,ICU NURSING WHISTON,VODAFONE LTD,40911882,7.50
Department of Health,St. Helens&Knowsley Hospitals NHS Trust,31/01/2022,Mobile Phones,INFECTION CONTROL,VODAFONE LTD,40911882,10.50
Department of Health,St. Helens&Knowsley Hospitals NHS Trust,31/01/2022,Mobile Phones,INFECTION CONTROL,VODAFONE LTD,40911882,52.50
Department of Health,St. Helens&Knowsley Hospitals NHS Trust,31/01/2022,Mobile Phones,INFORMATION DEPARTMENT,VODAFONE LTD,40911882,30.18
Department of Health,St. Helens&Knowsley Hospitals NHS Trust,31/01/2022,Mobile Phones,INFORMATION DEPARTMENT,VODAFONE LTD,40911882,150.91
Department of Health,St. Helens&Knowsley Hospitals NHS Trust,31/01/2022,Mobile Phones,INTERNATIONAL RECRUITMENT,VODAFONE LTD,40911882,13.20
Department of Health,St. Helens&Knowsley Hospitals NHS Trust,31/01/2022,Mobile Phones,INTERNATIONAL RECRUITMENT,VODAFONE LTD,40911882,66.00
Department of Health,St. Helens&Knowsley Hospitals NHS Trust,31/01/2022,Mobile Phones,IRREG MAINT WHISTON,VODAFONE LTD,40911882,18.00
Department of Health,St. Helens&Knowsley Hospitals NHS Trust,31/01/2022,Mobile Phones,IRREG MAINT WHISTON,VODAFONE LTD,40911882,90.00
Department of Health,St. Helens&Knowsley Hospitals NHS Trust,31/01/2022,Mobile Phones,IV THERAPY ST HELENS,VODAFONE LTD,40911882,42.83
Department of Health,St. Helens&Knowsley Hospitals NHS Trust,31/01/2022,Mobile Phones,IV THERAPY ST HELENS,VODAFONE LTD,40911882,214.16
Department of Health,St. Helens&Knowsley Hospitals NHS Trust,31/01/2022,Mobile Phones,LE-HELPDESK,VODAFONE LTD,40911882,21.60
Department of Health,St. Helens&Knowsley Hospitals NHS Trust,31/01/2022,Mobile Phones,LE-HELPDESK,VODAFONE LTD,40911882,108.00
Department of Health,St. Helens&Knowsley Hospitals NHS Trust,31/01/2022,Mobile Phones,LE-MANAGEMENT TEAM,VODAFONE LTD,40911882,130.90
Department of Health,St. Helens&Knowsley Hospitals NHS Trust,31/01/2022,Mobile Phones,LE-MANAGEMENT TEAM,VODAFONE LTD,40911882,654.52
Department of Health,St. Helens&Knowsley Hospitals NHS Trust,31/01/2022,Mobile Phones,LE-ROTATE AND CTRCT AMNDMNTS,VODAFONE LTD,40911882,42.00
Department of Health,St. Helens&Knowsley Hospitals NHS Trust,31/01/2022,Mobile Phones,LE-ROTATE AND CTRCT AMNDMNTS,VODAFONE LTD,40911882,210.00
Department of Health,St. Helens&Knowsley Hospitals NHS Trust,31/01/2022,Mobile Phones,LEGAL SERVICES,VODAFONE LTD,40911882,6.00
Department of Health,St. Helens&Knowsley Hospitals NHS Trust,31/01/2022,Mobile Phones,LEGAL SERVICES,VODAFONE LTD,40911882,30.00
Department of Health,St. Helens&Knowsley Hospitals NHS Trust,31/01/2022,Mobile Phones,LIBRARY SERVICES,VODAFONE LTD,40911882,6.00
Department of Health,St. Helens&Knowsley Hospitals NHS Trust,31/01/2022,Mobile Phones,LIBRARY SERVICES,VODAFONE LTD,40911882,30.00
Department of Health,St. Helens&Knowsley Hospitals NHS Trust,31/01/2022,Mobile Phones,MARSHALLS CROSS MEDICAL CENTRE,VODAFONE LTD,40911882,6.00
Department of Health,St. Helens&Knowsley Hospitals NHS Trust,31/01/2022,Mobile Phones,MARSHALLS CROSS MEDICAL CENTRE,VODAFONE LTD,40911882,30.00
Department of Health,St. Helens&Knowsley Hospitals NHS Trust,31/01/2022,Mobile Phones,MCG DISCHARGE CO-ORDINATORS,VODAFONE LTD,40911882,86.04
Department of Health,St. Helens&Knowsley Hospitals NHS Trust,31/01/2022,Mobile Phones,MCG DISCHARGE CO-ORDINATORS,VODAFONE LTD,40911882,430.22
Department of Health,St. Helens&Knowsley Hospitals NHS Trust,31/01/2022,Mobile Phones,MED SECRETARIES BAND 3,VODAFONE LTD,40911882,7.50
Department of Health,St. Helens&Knowsley Hospitals NHS Trust,31/01/2022,Mobile Phones,MED SECRETARIES BAND 3,VODAFONE LTD,40911882,37.50
Department of Health,St. Helens&Knowsley Hospitals NHS Trust,31/01/2022,Mobile Phones,MEDICAL CARE GROUP MGT,VODAFONE LTD,40911882,221.66
Department of Health,St. Helens&Knowsley Hospitals NHS Trust,31/01/2022,Mobile Phones,MEDICAL CARE GROUP MGT,VODAFONE LTD,40911882,"1,108.31"
Department of Health,St. Helens&Knowsley Hospitals NHS Trust,31/01/2022,Mobile Phones,MGMT SPECIALIST MIDWIVES,VODAFONE LTD,40911882,88.51
Department of Health,St. Helens&Knowsley Hospitals NHS Trust,31/01/2022,Mobile Phones,MGMT SPECIALIST MIDWIVES,VODAFONE LTD,40911882,442.57
Department of Health,St. Helens&Knowsley Hospitals NHS Trust,31/01/2022,Mobile Phones,MICROBIOLOGY DEPT,VODAFONE LTD,40911882,46.50
Department of Health,St. Helens&Knowsley Hospitals NHS Trust,31/01/2022,Mobile Phones,MICROBIOLOGY DEPT,VODAFONE LTD,40911882,232.50
Department of Health,St. Helens&Knowsley Hospitals NHS Trust,31/01/2022,Mobile Phones,MICROBIOLOGY MED STAFF,VODAFONE LTD,40911882,12.00
Department of Health,St. Helens&Knowsley Hospitals NHS Trust,31/01/2022,Mobile Phones,MICROBIOLOGY MED STAFF,VODAFONE LTD,40911882,60.00
Department of Health,St. Helens&Knowsley Hospitals NHS Trust,31/01/2022,Mobile Phones,MMDA PROGRAMME COSTS - SHARED SERVICES,VODAFONE LTD,40911882,463.22
Department of Health,St. Helens&Knowsley Hospitals NHS Trust,31/01/2022,Mobile Phones,MMDA PROGRAMME COSTS - SHARED SERVICES,VODAFONE LTD,40911882,"2,316.09"
Department of Health,St. Helens&Knowsley Hospitals NHS Trust,31/01/2022,Mobile Phones,MVP LEAD EMPLOYER SUPPORT,VODAFONE LTD,40911882,58.86
Department of Health,St. Helens&Knowsley Hospitals NHS Trust,31/01/2022,Mobile Phones,MVP LEAD EMPLOYER SUPPORT,VODAFONE LTD,40911882,294.28
Department of Health,St. Helens&Knowsley Hospitals NHS Trust,31/01/2022,Mobile Phones,NEWS2 Project,VODAFONE LTD,40911882,6.00
Department of Health,St. Helens&Knowsley Hospitals NHS Trust,31/01/2022,Mobile Phones,NEWS2 Project,VODAFONE LTD,40911882,30.00
Department of Health,St. Helens&Knowsley Hospitals NHS Trust,31/01/2022,Mobile Phones,NEWTON HOSPITAL OP,VODAFONE LTD,40911882,9.00
Department of Health,St. Helens&Knowsley Hospitals NHS Trust,31/01/2022,Mobile Phones,NEWTON HOSPITAL OP,VODAFONE LTD,40911882,45.00
Department of Health,St. Helens&Knowsley Hospitals NHS Trust,31/01/2022,Mobile Phones,NEWTON INTERMEDIATE CARE SERVICE,VODAFONE LTD,40911882,42.90
Department of Health,St. Helens&Knowsley Hospitals NHS Trust,31/01/2022,Mobile Phones,NEWTON INTERMEDIATE CARE SERVICE,VODAFONE LTD,40911882,214.50
Department of Health,St. Helens&Knowsley Hospitals NHS Trust,31/01/2022,Mobile Phones,NURSING ADMINISTRATION,VODAFONE LTD,40911882,111.64
Department of Health,St. Helens&Knowsley Hospitals NHS Trust,31/01/2022,Mobile Phones,NURSING ADMINISTRATION,VODAFONE LTD,40911882,558.20
Department of Health,St. Helens&Knowsley Hospitals NHS Trust,31/01/2022,Mobile Phones,NURSING DIRECTOR ADMIN STAFF,VODAFONE LTD,40911882,6.00
Department of Health,St. Helens&Knowsley Hospitals NHS Trust,31/01/2022,Mobile Phones,NURSING DIRECTOR ADMIN STAFF,VODAFONE LTD,40911882,30.00
Department of Health,St. Helens&Knowsley Hospitals NHS Trust,31/01/2022,Mobile Phones,OBS + GYNAE MEDICAL STAFF,VODAFONE LTD,40911882,12.00
Department of Health,St. Helens&Knowsley Hospitals NHS Trust,31/01/2022,Mobile Phones,OBS + GYNAE MEDICAL STAFF,VODAFONE LTD,40911882,60.00
Department of Health,St. Helens&Knowsley Hospitals NHS Trust,31/01/2022,Mobile Phones,OCCUPATIONAL HEALTH MED,VODAFONE LTD,40911882,16.56
Department of Health,St. Helens&Knowsley Hospitals NHS Trust,31/01/2022,Mobile Phones,OCCUPATIONAL HEALTH MED,VODAFONE LTD,40911882,82.80
Department of Health,St. Helens&Knowsley Hospitals NHS Trust,31/01/2022,Mobile Phones,OCCUPATIONAL HEALTH NURS,VODAFONE LTD,40911882,18.00
Department of Health,St. Helens&Knowsley Hospitals NHS Trust,31/01/2022,Mobile Phones,OCCUPATIONAL HEALTH NURS,VODAFONE LTD,40911882,90.00
Department of Health,St. Helens&Knowsley Hospitals NHS Trust,31/01/2022,Mobile Phones,ORGANISATIONAL L And D,VODAFONE LTD,40911882,1.50
Department of Health,St. Helens&Knowsley Hospitals NHS Trust,31/01/2022,Mobile Phones,ORGANISATIONAL L And D,VODAFONE LTD,40911882,7.50
Department of Health,St. Helens&Knowsley Hospitals NHS Trust,31/01/2022,Mobile Phones,ORTHOPAEDIC MEDICAL STAFF,VODAFONE LTD,40911882,6.00
Department of Health,St. Helens&Knowsley Hospitals NHS Trust,31/01/2022,Mobile Phones,ORTHOPAEDIC MEDICAL STAFF,VODAFONE LTD,40911882,30.00
Department of Health,St. Helens&Knowsley Hospitals NHS Trust,31/01/2022,Mobile Phones,ORTHOPTICS DEPARTMENT,VODAFONE LTD,40911882,6.00
Department of Health,St. Helens&Knowsley Hospitals NHS Trust,31/01/2022,Mobile Phones,ORTHOPTICS DEPARTMENT,VODAFONE LTD,40911882,30.00
Department of Health,St. Helens&Knowsley Hospitals NHS Trust,31/01/2022,Mobile Phones,OUTPATIENTS ST HELENS,VODAFONE LTD,40911882,6.00
Department of Health,St. Helens&Knowsley Hospitals NHS Trust,31/01/2022,Mobile Phones,OUTPATIENTS ST HELENS,VODAFONE LTD,40911882,30.00
Department of Health,St. Helens&Knowsley Hospitals NHS Trust,31/01/2022,Mobile Phones,PAED SPECIALIST NURSES,VODAFONE LTD,40911882,19.51
Department of Health,St. Helens&Knowsley Hospitals NHS Trust,31/01/2022,Mobile Phones,PAED SPECIALIST NURSES,VODAFONE LTD,40911882,97.56
Department of Health,St. Helens&Knowsley Hospitals NHS Trust,31/01/2022,Mobile Phones,PAEDIATRIC CONTINENCE,VODAFONE LTD,40911882,6.00
Department of Health,St. Helens&Knowsley Hospitals NHS Trust,31/01/2022,Mobile Phones,PAEDIATRIC CONTINENCE,VODAFONE LTD,40911882,30.00
Department of Health,St. Helens&Knowsley Hospitals NHS Trust,31/01/2022,Mobile Phones,PAEDIATRIC MEDICAL STAFF,VODAFONE LTD,40911882,1.50
Department of Health,St. Helens&Knowsley Hospitals NHS Trust,31/01/2022,Mobile Phones,PAEDIATRIC MEDICAL STAFF,VODAFONE LTD,40911882,7.50
Department of Health,St. Helens&Knowsley Hospitals NHS Trust,31/01/2022,Mobile Phones,PAEDIATRICS WARD CLERKS,VODAFONE LTD,40911882,1.50
Department of Health,St. Helens&Knowsley Hospitals NHS Trust,31/01/2022,Mobile Phones,PAEDIATRICS WARD CLERKS,VODAFONE LTD,40911882,7.50
Department of Health,St. Helens&Knowsley Hospitals NHS Trust,31/01/2022,Mobile Phones,PALLIATIVE CARE WHISTON,VODAFONE LTD,40911882,18.00
Department of Health,St. Helens&Knowsley Hospitals NHS Trust,31/01/2022,Mobile Phones,PALLIATIVE CARE WHISTON,VODAFONE LTD,40911882,90.00
Department of Health,St. Helens&Knowsley Hospitals NHS Trust,31/01/2022,Mobile Phones,PATHOLOGY GENERAL,VODAFONE LTD,40911882,111.00
Department of Health,St. Helens&Knowsley Hospitals NHS Trust,31/01/2022,Mobile Phones,PATHOLOGY GENERAL,VODAFONE LTD,40911882,555.00
Department of Health,St. Helens&Knowsley Hospitals NHS Trust,31/01/2022,Mobile Phones,PATIENT ACCESS MGMT,VODAFONE LTD,40911882,19.29
Department of Health,St. Helens&Knowsley Hospitals NHS Trust,31/01/2022,Mobile Phones,PATIENT ACCESS MGMT,VODAFONE LTD,40911882,96.43
Department of Health,St. Helens&Knowsley Hospitals NHS Trust,31/01/2022,Mobile Phones,PAYING PATIENTS,VODAFONE LTD,40911882,18.00
Department of Health,St. Helens&Knowsley Hospitals NHS Trust,31/01/2022,Mobile Phones,PAYING PATIENTS,VODAFONE LTD,40911882,90.00
Department of Health,St. Helens&Knowsley Hospitals NHS Trust,31/01/2022,Mobile Phones,PAYROLL SERVICES,VODAFONE LTD,40911882,150.02
Department of Health,St. Helens&Knowsley Hospitals NHS Trust,31/01/2022,Mobile Phones,PAYROLL SERVICES,VODAFONE LTD,40911882,750.08
Department of Health,St. Helens&Knowsley Hospitals NHS Trust,31/01/2022,Mobile Phones,PFI DESIGN + CONSTRUCTION,VODAFONE LTD,40911882,36.60
Department of Health,St. Helens&Knowsley Hospitals NHS Trust,31/01/2022,Mobile Phones,PFI DESIGN + CONSTRUCTION,VODAFONE LTD,40911882,183.00
Department of Health,St. Helens&Knowsley Hospitals NHS Trust,31/01/2022,Mobile Phones,PHARMACY GENERAL,VODAFONE LTD,40911882,122.26
Department of Health,St. Helens&Knowsley Hospitals NHS Trust,31/01/2022,Mobile Phones,PHARMACY GENERAL,VODAFONE LTD,40911882,611.29
Department of Health,St. Helens&Knowsley Hospitals NHS Trust,31/01/2022,Mobile Phones,PROJECTS And TRAINING,VODAFONE LTD,40911882,49.50
Department of Health,St. Helens&Knowsley Hospitals NHS Trust,31/01/2022,Mobile Phones,PROJECTS And TRAINING,VODAFONE LTD,40911882,247.50
Department of Health,St. Helens&Knowsley Hospitals NHS Trust,31/01/2022,Mobile Phones,RADIOGRAPHY WHISTON,VODAFONE LTD,40911882,12.00
Department of Health,St. Helens&Knowsley Hospitals NHS Trust,31/01/2022,Mobile Phones,RADIOGRAPHY WHISTON,VODAFONE LTD,40911882,60.00
Department of Health,St. Helens&Knowsley Hospitals NHS Trust,31/01/2022,Mobile Phones,RADIOLOGY MEDICAL STAFF,VODAFONE LTD,40911882,6.00
Department of Health,St. Helens&Knowsley Hospitals NHS Trust,31/01/2022,Mobile Phones,RADIOLOGY MEDICAL STAFF,VODAFONE LTD,40911882,30.00
Department of Health,St. Helens&Knowsley Hospitals NHS Trust,31/01/2022,Mobile Phones,RD AND I,VODAFONE LTD,40911882,19.50
Department of Health,St. Helens&Knowsley Hospitals NHS Trust,31/01/2022,Mobile Phones,RD AND I,VODAFONE LTD,40911882,97.50
Department of Health,St. Helens&Knowsley Hospitals NHS Trust,31/01/2022,Mobile Phones,REABLEMENT TEAM,VODAFONE LTD,40911882,22.50
Department of Health,St. Helens&Knowsley Hospitals NHS Trust,31/01/2022,Mobile Phones,REABLEMENT TEAM,VODAFONE LTD,40911882,112.50
Department of Health,St. Helens&Knowsley Hospitals NHS Trust,31/01/2022,Mobile Phones,REGIONAL CANCER TRANSFORMATION,VODAFONE LTD,40911882,12.02
Department of Health,St. Helens&Knowsley Hospitals NHS Trust,31/01/2022,Mobile Phones,REGIONAL CANCER TRANSFORMATION,VODAFONE LTD,40911882,60.12
Department of Health,St. Helens&Knowsley Hospitals NHS Trust,31/01/2022,Mobile Phones,REGIONAL VACCINATION CENTRE,VODAFONE LTD,40911882,33.60
Department of Health,St. Helens&Knowsley Hospitals NHS Trust,31/01/2022,Mobile Phones,REGIONAL VACCINATION CENTRE,VODAFONE LTD,40911882,168.00
Department of Health,St. Helens&Knowsley Hospitals NHS Trust,31/01/2022,Mobile Phones,RESPIRATORY NURSING,VODAFONE LTD,40911882,30.00
Department of Health,St. Helens&Knowsley Hospitals NHS Trust,31/01/2022,Mobile Phones,RESPIRATORY NURSING,VODAFONE LTD,40911882,150.00
Department of Health,St. Helens&Knowsley Hospitals NHS Trust,31/01/2022,Mobile Phones,RESPIRATORY SNR MEDICAL,VODAFONE LTD,40911882,66.26
Department of Health,St. Helens&Knowsley Hospitals NHS Trust,31/01/2022,Mobile Phones,RESPIRATORY SNR MEDICAL,VODAFONE LTD,40911882,331.30
Department of Health,St. Helens&Knowsley Hospitals NHS Trust,31/01/2022,Mobile Phones,RESUSCITATION TRAINING,VODAFONE LTD,40911882,6.00
Department of Health,St. Helens&Knowsley Hospitals NHS Trust,31/01/2022,Mobile Phones,RESUSCITATION TRAINING,VODAFONE LTD,40911882,30.00
Department of Health,St. Helens&Knowsley Hospitals NHS Trust,31/01/2022,Mobile Phones,SAFEGUARDING,VODAFONE LTD,40911882,21.55
Department of Health,St. Helens&Knowsley Hospitals NHS Trust,31/01/2022,Mobile Phones,SAFEGUARDING,VODAFONE LTD,40911882,107.74
Department of Health,St. Helens&Knowsley Hospitals NHS Trust,31/01/2022,Mobile Phones,SANDERSON SUITE GENERAL SURGERY,VODAFONE LTD,40911882,12.00
Department of Health,St. Helens&Knowsley Hospitals NHS Trust,31/01/2022,Mobile Phones,SANDERSON SUITE GENERAL SURGERY,VODAFONE LTD,40911882,60.00
Department of Health,St. Helens&Knowsley Hospitals NHS Trust,31/01/2022,Mobile Phones,SECURITY SERVICES,VODAFONE LTD,40911882,42.00
Department of Health,St. Helens&Knowsley Hospitals NHS Trust,31/01/2022,Mobile Phones,SECURITY SERVICES,VODAFONE LTD,40911882,210.00
Department of Health,St. Helens&Knowsley Hospitals NHS Trust,31/01/2022,Mobile Phones,SEDDON SUITE TRAUMA REHAB UNIT,VODAFONE LTD,40911882,7.50
Department of Health,St. Helens&Knowsley Hospitals NHS Trust,31/01/2022,Mobile Phones,SEDDON SUITE TRAUMA REHAB UNIT,VODAFONE LTD,40911882,37.50
Department of Health,St. Helens&Knowsley Hospitals NHS Trust,31/01/2022,Mobile Phones,SEPSIS,VODAFONE LTD,40911882,6.00
Department of Health,St. Helens&Knowsley Hospitals NHS Trust,31/01/2022,Mobile Phones,SEPSIS,VODAFONE LTD,40911882,30.00
Department of Health,St. Helens&Knowsley Hospitals NHS Trust,31/01/2022,Mobile Phones,SERV INCR 4 TEACHING-SIFT,VODAFONE LTD,40911882,30.00
Department of Health,St. Helens&Knowsley Hospitals NHS Trust,31/01/2022,Mobile Phones,SERV INCR 4 TEACHING-SIFT,VODAFONE LTD,40911882,150.00
Department of Health,St. Helens&Knowsley Hospitals NHS Trust,31/01/2022,Mobile Phones,SERVICE DELIVERY INFRASTRUCTURE,VODAFONE LTD,40911882,30.00
Department of Health,St. Helens&Knowsley Hospitals NHS Trust,31/01/2022,Mobile Phones,SERVICE DELIVERY INFRASTRUCTURE,VODAFONE LTD,40911882,150.00
Department of Health,St. Helens&Knowsley Hospitals NHS Trust,31/01/2022,Mobile Phones,SERVICE DELIVERY OPERATIONS,VODAFONE LTD,40911882,6.00
Department of Health,St. Helens&Knowsley Hospitals NHS Trust,31/01/2022,Mobile Phones,SERVICE DELIVERY OPERATIONS,VODAFONE LTD,40911882,30.00
Department of Health,St. Helens&Knowsley Hospitals NHS Trust,31/01/2022,Mobile Phones,SEXUAL HEALTH,VODAFONE LTD,40911882,130.94
Department of Health,St. Helens&Knowsley Hospitals NHS Trust,31/01/2022,Mobile Phones,SEXUAL HEALTH,VODAFONE LTD,40911882,654.68
Department of Health,St. Helens&Knowsley Hospitals NHS Trust,31/01/2022,Mobile Phones,SHARED CARE RECORD - ST HELENS HEALTH ECONOMY,VODAFONE LTD,40911882,18.00
Department of Health,St. Helens&Knowsley Hospitals NHS Trust,31/01/2022,Mobile Phones,SHARED CARE RECORD - ST HELENS HEALTH ECONOMY,VODAFONE LTD,40911882,90.00
Department of Health,St. Helens&Knowsley Hospitals NHS Trust,31/01/2022,Mobile Phones,SOHT BLOOD SCIENCES,VODAFONE LTD,40911882,1.50
Department of Health,St. Helens&Knowsley Hospitals NHS Trust,31/01/2022,Mobile Phones,SOHT BLOOD SCIENCES,VODAFONE LTD,40911882,7.50
Department of Health,St. Helens&Knowsley Hospitals NHS Trust,31/01/2022,Mobile Phones,SOHT PHLEBOTOMY,VODAFONE LTD,40911882,42.94
Department of Health,St. Helens&Knowsley Hospitals NHS Trust,31/01/2022,Mobile Phones,SOHT PHLEBOTOMY,VODAFONE LTD,40911882,214.70
Department of Health,St. Helens&Knowsley Hospitals NHS Trust,31/01/2022,Mobile Phones,SOUTH TREATMENT ROOMS,VODAFONE LTD,40911882,6.00
Department of Health,St. Helens&Knowsley Hospitals NHS Trust,31/01/2022,Mobile Phones,SOUTH TREATMENT ROOMS,VODAFONE LTD,40911882,30.00
Department of Health,St. Helens&Knowsley Hospitals NHS Trust,31/01/2022,Mobile Phones,ST HELENS CONTACT CARE IC THERAPY TEAM,VODAFONE LTD,40911882,4.90
Department of Health,St. Helens&Knowsley Hospitals NHS Trust,31/01/2022,Mobile Phones,ST HELENS CONTACT CARE IC THERAPY TEAM,VODAFONE LTD,40911882,24.50
Department of Health,St. Helens&Knowsley Hospitals NHS Trust,31/01/2022,Mobile Phones,ST HELENS CONTACT CARES REABLEMENT TEAM,VODAFONE LTD,40911882,16.24
Department of Health,St. Helens&Knowsley Hospitals NHS Trust,31/01/2022,Mobile Phones,ST HELENS CONTACT CARES REABLEMENT TEAM,VODAFONE LTD,40911882,81.20
Department of Health,St. Helens&Knowsley Hospitals NHS Trust,31/01/2022,Mobile Phones,ST HELENS UTC,VODAFONE LTD,40911882,6.93
Department of Health,St. Helens&Knowsley Hospitals NHS Trust,31/01/2022,Mobile Phones,ST HELENS UTC,VODAFONE LTD,40911882,34.67
Department of Health,St. Helens&Knowsley Hospitals NHS Trust,31/01/2022,Mobile Phones,SURGICAL CARE MANAGEMENT,VODAFONE LTD,40911882,116.28
Department of Health,St. Helens&Knowsley Hospitals NHS Trust,31/01/2022,Mobile Phones,SURGICAL CARE MANAGEMENT,VODAFONE LTD,40911882,581.39
Department of Health,St. Helens&Knowsley Hospitals NHS Trust,31/01/2022,Mobile Phones,SURGICAL CARE SECS,VODAFONE LTD,40911882,6.00
Department of Health,St. Helens&Knowsley Hospitals NHS Trust,31/01/2022,Mobile Phones,SURGICAL CARE SECS,VODAFONE LTD,40911882,30.00
Department of Health,St. Helens&Knowsley Hospitals NHS Trust,31/01/2022,Mobile Phones,THEATRES ANAESTHETICS WH,VODAFONE LTD,40911882,1.50
Department of Health,St. Helens&Knowsley Hospitals NHS Trust,31/01/2022,Mobile Phones,THEATRES ANAESTHETICS WH,VODAFONE LTD,40911882,7.50
Department of Health,St. Helens&Knowsley Hospitals NHS Trust,31/01/2022,Mobile Phones,THEATRES BURNS + PLASTICS,VODAFONE LTD,40911882,7.50
Department of Health,St. Helens&Knowsley Hospitals NHS Trust,31/01/2022,Mobile Phones,THEATRES BURNS + PLASTICS,VODAFONE LTD,40911882,37.50
Department of Health,St. Helens&Knowsley Hospitals NHS Trust,31/01/2022,Mobile Phones,THEATRES DIRECTORATE MGT,VODAFONE LTD,40911882,79.52
Department of Health,St. Helens&Knowsley Hospitals NHS Trust,31/01/2022,Mobile Phones,THEATRES DIRECTORATE MGT,VODAFONE LTD,40911882,397.62
Department of Health,St. Helens&Knowsley Hospitals NHS Trust,31/01/2022,Mobile Phones,THEATRES ENT WHISTON,VODAFONE LTD,40911882,4.97
Department of Health,St. Helens&Knowsley Hospitals NHS Trust,31/01/2022,Mobile Phones,THEATRES ENT WHISTON,VODAFONE LTD,40911882,24.84
Department of Health,St. Helens&Knowsley Hospitals NHS Trust,31/01/2022,Mobile Phones,THEATRES GEN SURGERY/UROL,VODAFONE LTD,40911882,3.00
Department of Health,St. Helens&Knowsley Hospitals NHS Trust,31/01/2022,Mobile Phones,THEATRES GEN SURGERY/UROL,VODAFONE LTD,40911882,15.00
Department of Health,St. Helens&Knowsley Hospitals NHS Trust,31/01/2022,Mobile Phones,THEATRES MAIN ST HELEN'S,VODAFONE LTD,40911882,9.00
Department of Health,St. Helens&Knowsley Hospitals NHS Trust,31/01/2022,Mobile Phones,THEATRES MAIN ST HELEN'S,VODAFONE LTD,40911882,45.00
Department of Health,St. Helens&Knowsley Hospitals NHS Trust,31/01/2022,Mobile Phones,THEATRES MATERNITY WH,VODAFONE LTD,40911882,11.84
Department of Health,St. Helens&Knowsley Hospitals NHS Trust,31/01/2022,Mobile Phones,THEATRES MATERNITY WH,VODAFONE LTD,40911882,59.19
Department of Health,St. Helens&Knowsley Hospitals NHS Trust,31/01/2022,Mobile Phones,THEATRES MEDICAL STAFF,VODAFONE LTD,40911882,6.00
Department of Health,St. Helens&Knowsley Hospitals NHS Trust,31/01/2022,Mobile Phones,THEATRES MEDICAL STAFF,VODAFONE LTD,40911882,30.00
Department of Health,St. Helens&Knowsley Hospitals NHS Trust,31/01/2022,Mobile Phones,THEATRES TRAU ORTHOPAEDIC,VODAFONE LTD,40911882,1.50
Department of Health,St. Helens&Knowsley Hospitals NHS Trust,31/01/2022,Mobile Phones,THEATRES TRAU ORTHOPAEDIC,VODAFONE LTD,40911882,7.50
Department of Health,St. Helens&Knowsley Hospitals NHS Trust,31/01/2022,Mobile Phones,THERAPY - AHP FACULTY PROJECT,VODAFONE LTD,40911882,10.13
Department of Health,St. Helens&Knowsley Hospitals NHS Trust,31/01/2022,Mobile Phones,THERAPY - AHP FACULTY PROJECT,VODAFONE LTD,40911882,50.65
Department of Health,St. Helens&Knowsley Hospitals NHS Trust,31/01/2022,Mobile Phones,THERAPY - MEDICINES FOR OLDER PEOPLE,VODAFONE LTD,40911882,1.50
Department of Health,St. Helens&Knowsley Hospitals NHS Trust,31/01/2022,Mobile Phones,THERAPY - MEDICINES FOR OLDER PEOPLE,VODAFONE LTD,40911882,7.50
Department of Health,St. Helens&Knowsley Hospitals NHS Trust,31/01/2022,Mobile Phones,THERAPY - SEDDON REHAB UNIT,VODAFONE LTD,40911882,6.00
Department of Health,St. Helens&Knowsley Hospitals NHS Trust,31/01/2022,Mobile Phones,THERAPY - SEDDON REHAB UNIT,VODAFONE LTD,40911882,30.00
Department of Health,St. Helens&Knowsley Hospitals NHS Trust,31/01/2022,Mobile Phones,THERAPY MANAGEMENT & ADMIN.,VODAFONE LTD,40911882,118.86
Department of Health,St. Helens&Knowsley Hospitals NHS Trust,31/01/2022,Mobile Phones,THERAPY MANAGEMENT & ADMIN.,VODAFONE LTD,40911882,594.32
Department of Health,St. Helens&Knowsley Hospitals NHS Trust,31/01/2022,Mobile Phones,TISSUE VIABILITY,VODAFONE LTD,40911882,9.00
Department of Health,St. Helens&Knowsley Hospitals NHS Trust,31/01/2022,Mobile Phones,TISSUE VIABILITY,VODAFONE LTD,40911882,45.00
Department of Health,St. Helens&Knowsley Hospitals NHS Trust,31/01/2022,Mobile Phones,TRANSFER LOUNGE,VODAFONE LTD,40911882,1.50
Department of Health,St. Helens&Knowsley Hospitals NHS Trust,31/01/2022,Mobile Phones,TRANSFER LOUNGE,VODAFONE LTD,40911882,7.50
Department of Health,St. Helens&Knowsley Hospitals NHS Trust,31/01/2022,Mobile Phones,TRUST RECHARGES,VODAFONE LTD,40911882,250.68
Department of Health,St. Helens&Knowsley Hospitals NHS Trust,31/01/2022,Mobile Phones,TRUST RECHARGES,VODAFONE LTD,40911882,"1,253.42"
Department of Health,St. Helens&Knowsley Hospitals NHS Trust,31/01/2022,Mobile Phones,UROLOGY MEDICAL STAFF,VODAFONE LTD,40911882,18.00
Department of Health,St. Helens&Knowsley Hospitals NHS Trust,31/01/2022,Mobile Phones,UROLOGY MEDICAL STAFF,VODAFONE LTD,40911882,90.00
Department of Health,St. Helens&Knowsley Hospitals NHS Trust,31/01/2022,Mobile Phones,UROLOGY SUITE,VODAFONE LTD,40911882,13.50
Department of Health,St. Helens&Knowsley Hospitals NHS Trust,31/01/2022,Mobile Phones,UROLOGY SUITE,VODAFONE LTD,40911882,67.50
Department of Health,St. Helens&Knowsley Hospitals NHS Trust,31/01/2022,Mobile Phones,VOLUNTEERS,VODAFONE LTD,40911882,12.00
Department of Health,St. Helens&Knowsley Hospitals NHS Trust,31/01/2022,Mobile Phones,VOLUNTEERS,VODAFONE LTD,40911882,60.00
Department of Health,St. Helens&Knowsley Hospitals NHS Trust,31/01/2022,Mobile Phones,WARD 1A WINTER,VODAFONE LTD,40911882,12.00
Department of Health,St. Helens&Knowsley Hospitals NHS Trust,31/01/2022,Mobile Phones,WARD 1A WINTER,VODAFONE LTD,40911882,60.00
Department of Health,St. Helens&Knowsley Hospitals NHS Trust,31/01/2022,Mobile Phones,WARD 1B ACUTE MEDICAL UNIT,VODAFONE LTD,40911882,6.23
Department of Health,St. Helens&Knowsley Hospitals NHS Trust,31/01/2022,Mobile Phones,WARD 1B ACUTE MEDICAL UNIT,VODAFONE LTD,40911882,31.13
Department of Health,St. Helens&Knowsley Hospitals NHS Trust,31/01/2022,Mobile Phones,WARD 1C ACUTE MEDICAL UNIT,VODAFONE LTD,40911882,12.00
Department of Health,St. Helens&Knowsley Hospitals NHS Trust,31/01/2022,Mobile Phones,WARD 1C ACUTE MEDICAL UNIT,VODAFONE LTD,40911882,60.00
Department of Health,St. Helens&Knowsley Hospitals NHS Trust,31/01/2022,Mobile Phones,WARD 1E CORONARY CARE UNIT,VODAFONE LTD,40911882,6.00
Department of Health,St. Helens&Knowsley Hospitals NHS Trust,31/01/2022,Mobile Phones,WARD 1E CORONARY CARE UNIT,VODAFONE LTD,40911882,30.00
Department of Health,St. Helens&Knowsley Hospitals NHS Trust,31/01/2022,Mobile Phones,WARD 2A HAEMATOLOGY,VODAFONE LTD,40911882,12.00
Department of Health,St. Helens&Knowsley Hospitals NHS Trust,31/01/2022,Mobile Phones,WARD 2A HAEMATOLOGY,VODAFONE LTD,40911882,60.00
Department of Health,St. Helens&Knowsley Hospitals NHS Trust,31/01/2022,Mobile Phones,WARD 2B RESPIRATORY,VODAFONE LTD,40911882,6.00
Department of Health,St. Helens&Knowsley Hospitals NHS Trust,31/01/2022,Mobile Phones,WARD 2B RESPIRATORY,VODAFONE LTD,40911882,30.00
Department of Health,St. Helens&Knowsley Hospitals NHS Trust,31/01/2022,Mobile Phones,WARD 2C RESPIRATORY,VODAFONE LTD,40911882,12.00
Department of Health,St. Helens&Knowsley Hospitals NHS Trust,31/01/2022,Mobile Phones,WARD 2C RESPIRATORY,VODAFONE LTD,40911882,60.00
Department of Health,St. Helens&Knowsley Hospitals NHS Trust,31/01/2022,Mobile Phones,WARD 2D GENERAL MEDICINE,VODAFONE LTD,40911882,6.00
Department of Health,St. Helens&Knowsley Hospitals NHS Trust,31/01/2022,Mobile Phones,WARD 2D GENERAL MEDICINE,VODAFONE LTD,40911882,30.00
Department of Health,St. Helens&Knowsley Hospitals NHS Trust,31/01/2022,Mobile Phones,WARD 3A PLASTICS,VODAFONE LTD,40911882,19.52
Department of Health,St. Helens&Knowsley Hospitals NHS Trust,31/01/2022,Mobile Phones,WARD 3A PLASTICS,VODAFONE LTD,40911882,97.62
Department of Health,St. Helens&Knowsley Hospitals NHS Trust,31/01/2022,Mobile Phones,WARD 3ALPHA ORTHOPAEDICS,VODAFONE LTD,40911882,6.00
Department of Health,St. Helens&Knowsley Hospitals NHS Trust,31/01/2022,Mobile Phones,WARD 3ALPHA ORTHOPAEDICS,VODAFONE LTD,40911882,30.00
Department of Health,St. Helens&Knowsley Hospitals NHS Trust,31/01/2022,Mobile Phones,WARD 3B ORTHOPAEDICS,VODAFONE LTD,40911882,6.00
Department of Health,St. Helens&Knowsley Hospitals NHS Trust,31/01/2022,Mobile Phones,WARD 3B ORTHOPAEDICS,VODAFONE LTD,40911882,30.00
Department of Health,St. Helens&Knowsley Hospitals NHS Trust,31/01/2022,Mobile Phones,WARD 3D GASTROENTEROLOGY,VODAFONE LTD,40911882,12.00
Department of Health,St. Helens&Knowsley Hospitals NHS Trust,31/01/2022,Mobile Phones,WARD 3D GASTROENTEROLOGY,VODAFONE LTD,40911882,60.00
Department of Health,St. Helens&Knowsley Hospitals NHS Trust,31/01/2022,Mobile Phones,WARD 3E GYNAECOLOGY,VODAFONE LTD,40911882,24.93
Department of Health,St. Helens&Knowsley Hospitals NHS Trust,31/01/2022,Mobile Phones,WARD 3E GYNAECOLOGY,VODAFONE LTD,40911882,124.67
Department of Health,St. Helens&Knowsley Hospitals NHS Trust,31/01/2022,Mobile Phones,WARD 3F PAEDIATRICS,VODAFONE LTD,40911882,15.85
Department of Health,St. Helens&Knowsley Hospitals NHS Trust,31/01/2022,Mobile Phones,WARD 3F PAEDIATRICS,VODAFONE LTD,40911882,79.23
Department of Health,St. Helens&Knowsley Hospitals NHS Trust,31/01/2022,Mobile Phones,WARD 4A GENERAL SURGERY,VODAFONE LTD,40911882,6.00
Department of Health,St. Helens&Knowsley Hospitals NHS Trust,31/01/2022,Mobile Phones,WARD 4A GENERAL SURGERY,VODAFONE LTD,40911882,30.00
Department of Health,St. Helens&Knowsley Hospitals NHS Trust,31/01/2022,Mobile Phones,WARD 4B GENERAL SURGERY,VODAFONE LTD,40911882,6.00
Department of Health,St. Helens&Knowsley Hospitals NHS Trust,31/01/2022,Mobile Phones,WARD 4B GENERAL SURGERY,VODAFONE LTD,40911882,30.00
Department of Health,St. Helens&Knowsley Hospitals NHS Trust,31/01/2022,Mobile Phones,WARD 4C GENERAL SURGERY,VODAFONE LTD,40911882,6.00
Department of Health,St. Helens&Knowsley Hospitals NHS Trust,31/01/2022,Mobile Phones,WARD 4C GENERAL SURGERY,VODAFONE LTD,40911882,30.00
Department of Health,St. Helens&Knowsley Hospitals NHS Trust,31/01/2022,Mobile Phones,WARD 4D BURNS,VODAFONE LTD,40911882,17.25
Department of Health,St. Helens&Knowsley Hospitals NHS Trust,31/01/2022,Mobile Phones,WARD 4D BURNS,VODAFONE LTD,40911882,86.23
Department of Health,St. Helens&Knowsley Hospitals NHS Trust,31/01/2022,Mobile Phones,WARD 5A CARE OF THE ELDERLY,VODAFONE LTD,40911882,6.00
Department of Health,St. Helens&Knowsley Hospitals NHS Trust,31/01/2022,Mobile Phones,WARD 5A CARE OF THE ELDERLY,VODAFONE LTD,40911882,30.00
Department of Health,St. Helens&Knowsley Hospitals NHS Trust,31/01/2022,Mobile Phones,WARD 5B CARE OF THE ELDERLY,VODAFONE LTD,40911882,7.47
Department of Health,St. Helens&Knowsley Hospitals NHS Trust,31/01/2022,Mobile Phones,WARD 5B CARE OF THE ELDERLY,VODAFONE LTD,40911882,37.33
Department of Health,St. Helens&Knowsley Hospitals NHS Trust,31/01/2022,Mobile Phones,WARD 5C ACUTE STROKE UNIT (HASU),VODAFONE LTD,40911882,31.50
Department of Health,St. Helens&Knowsley Hospitals NHS Trust,31/01/2022,Mobile Phones,WARD 5C ACUTE STROKE UNIT (HASU),VODAFONE LTD,40911882,157.50
Department of Health,St. Helens&Knowsley Hospitals NHS Trust,31/01/2022,Mobile Phones,WARD 5D ASU,VODAFONE LTD,40911882,6.00
Department of Health,St. Helens&Knowsley Hospitals NHS Trust,31/01/2022,Mobile Phones,WARD 5D ASU,VODAFONE LTD,40911882,30.00
Department of Health,St. Helens&Knowsley Hospitals NHS Trust,31/01/2022,Mobile Phones,WHIS THEATRES ANCIL & EMERG SUP STAFF,VODAFONE LTD,40911882,18.02
Department of Health,St. Helens&Knowsley Hospitals NHS Trust,31/01/2022,Mobile Phones,WHIS THEATRES ANCIL & EMERG SUP STAFF,VODAFONE LTD,40911882,90.12
Department of Health,St. Helens&Knowsley Hospitals NHS Trust,31/01/2022,Mobile Phones,WHIS THEATRES EMERG WKDAY NGTS WKEND,VODAFONE LTD,40911882,6.00
Department of Health,St. Helens&Knowsley Hospitals NHS Trust,31/01/2022,Mobile Phones,WHIS THEATRES EMERG WKDAY NGTS WKEND,VODAFONE LTD,40911882,30.00
Department of Health,St. Helens&Knowsley Hospitals NHS Trust,31/01/2022,Mobile Phones,WHISTON EQUIPMENT POOL,VODAFONE LTD,40911882,14.00
Department of Health,St. Helens&Knowsley Hospitals NHS Trust,31/01/2022,Mobile Phones,WHISTON EQUIPMENT POOL,VODAFONE LTD,40911882,70.00
Department of Health,St. Helens&Knowsley Hospitals NHS Trust,31/01/2022,Mobile Phones,WOMENS OPD,VODAFONE LTD,40911882,7.50
Department of Health,St. Helens&Knowsley Hospitals NHS Trust,31/01/2022,Mobile Phones,WOMENS OPD,VODAFONE LTD,40911882,37.50
Department of Health,St. Helens&Knowsley Hospitals NHS Trust,31/01/2022,Mobile Phones,WORKFORCE INTELLIGENCE,VODAFONE LTD,40911882,18.00
Department of Health,St. Helens&Knowsley Hospitals NHS Trust,31/01/2022,Mobile Phones,WORKFORCE INTELLIGENCE,VODAFONE LTD,40911882,90.00
Department of Health,St. Helens&Knowsley Hospitals NHS Trust,31/01/2022,Other Gen Supplies & Srv,IRREG MAINT WHISTON,HOSPEDIA LTD,40954577,"34,084.50"
Department of Health,St. Helens&Knowsley Hospitals NHS Trust,31/01/2022,Other recvables - Current,Balance Sheet,VODAFONE LTD,40911882,6.00
Department of Health,St. Helens&Knowsley Hospitals NHS Trust,31/01/2022,Other recvables - Current,Balance Sheet,VODAFONE LTD,40911882,30.00
Department of Health,St. Helens&Knowsley Hospitals NHS Trust,31/01/2022,Pacemakers,CARDIAC PACING,MEDTRONIC LTD,40944494,"36,000.00"
Department of Health,St. Helens&Knowsley Hospitals NHS Trust,31/01/2022,Pacemakers,CARDIAC PACING,MEDTRONIC LTD,40944494,"7,200.00"
Department of Health,St. Helens&Knowsley Hospitals NHS Trust,31/01/2022,Postage & Carriage,HOTEL SERVICES MGT ST H,PITNEY BOWES LTD,40858268,"50,872.30"
Department of Health,St. Helens&Knowsley Hospitals NHS Trust,31/01/2022,Rent,COMMUNITY RENT,HAYDOCK MEDICAL COMPANY LTD,40771917,"44,999.56"
Department of Health,St. Helens&Knowsley Hospitals NHS Trust,31/01/2022,Rent,B + P MEDICAL STAFF,BETSI CADWALADR UNIVERSITY HEALTH BOARD,40911890,"65,842.29"
Department of Health,St. Helens&Knowsley Hospitals NHS Trust,31/01/2022,Stocks Raw Materials,Balance Sheet,ROCHE PRODUCTS LTD,40738723,"36,172.80"
Department of Health,St. Helens&Knowsley Hospitals NHS Trust,31/01/2022,Stocks Raw Materials,Balance Sheet,ALLOGA UK LTD,40769876,"26,706.35"
Department of Health,St. Helens&Knowsley Hospitals NHS Trust,31/01/2022,Stocks Raw Materials,Balance Sheet,AAH PHARMACEUTICALS LTD,40769878,"35,818.48"
Department of Health,St. Helens&Knowsley Hospitals NHS Trust,31/01/2022,Stocks Raw Materials,Balance Sheet,ALLIANCE HEALTHCARE DISTRIBUTION LTD,40769879,"14,837.05"
Department of Health,St. Helens&Knowsley Hospitals NHS Trust,31/01/2022,Stocks Raw Materials,Balance Sheet,ALLIANCE HEALTHCARE DISTRIBUTION LTD,40769879,"64,528.20"
Department of Health,St. Helens&Knowsley Hospitals NHS Trust,31/01/2022,Stocks Raw Materials,Balance Sheet,AAH PHARMACEUTICALS LTD,40769880,"68,009.83"
Department of Health,St. Helens&Knowsley Hospitals NHS Trust,31/01/2022,Stocks Raw Materials,Balance Sheet,ALLIANCE HEALTHCARE DISTRIBUTION LTD,40769881,"12,932.02"
Department of Health,St. Helens&Knowsley Hospitals NHS Trust,31/01/2022,Stocks Raw Materials,Balance Sheet,ALLIANCE HEALTHCARE DISTRIBUTION LTD,40769881,"47,559.30"
Department of Health,St. Helens&Knowsley Hospitals NHS Trust,31/01/2022,Stocks Raw Materials,Balance Sheet,HEALTHCARE AT HOME LTD,40769882,"93,368.81"
Department of Health,St. Helens&Knowsley Hospitals NHS Trust,31/01/2022,Stocks Raw Materials,Balance Sheet,PHOENIX HEALTHCARE DISTRIBUTION LTD,40769883,"7,809.53"
Department of Health,St. Helens&Knowsley Hospitals NHS Trust,31/01/2022,Stocks Raw Materials,Balance Sheet,PHOENIX HEALTHCARE DISTRIBUTION LTD,40769883,"40,033.75"
Department of Health,St. Helens&Knowsley Hospitals NHS Trust,31/01/2022,Stocks Raw Materials,Balance Sheet,NOVARTIS PHARMACEUTICALS UK LTD,40805211,"30,451.68"
Department of Health,St. Helens&Knowsley Hospitals NHS Trust,31/01/2022,Stocks Raw Materials,Balance Sheet,NOVARTIS PHARMACEUTICALS UK LTD,40805211,20.20
Department of Health,St. Helens&Knowsley Hospitals NHS Trust,31/01/2022,Stocks Raw Materials,Balance Sheet,NOVARTIS PHARMACEUTICALS UK LTD,40805211,110.22
Department of Health,St. Helens&Knowsley Hospitals NHS Trust,31/01/2022,Stocks Raw Materials,Balance Sheet,NOVARTIS PHARMACEUTICALS UK LTD,40805211,215.82
Department of Health,St. Helens&Knowsley Hospitals NHS Trust,31/01/2022,Stocks Raw Materials,Balance Sheet,NOVARTIS PHARMACEUTICALS UK LTD,40805211,13.22
Department of Health,St. Helens&Knowsley Hospitals NHS Trust,31/01/2022,Stocks Raw Materials,Balance Sheet,NOVARTIS PHARMACEUTICALS UK LTD,40805211,122.76
Department of Health,St. Helens&Knowsley Hospitals NHS Trust,31/01/2022,Stocks Raw Materials,Balance Sheet,NOVARTIS PHARMACEUTICALS UK LTD,40805211,11.07
Department of Health,St. Helens&Knowsley Hospitals NHS Trust,31/01/2022,Stocks Raw Materials,Balance Sheet,NOVARTIS PHARMACEUTICALS UK LTD,40805211,5.42
Department of Health,St. Helens&Knowsley Hospitals NHS Trust,31/01/2022,Stocks Raw Materials,Balance Sheet,NOVARTIS PHARMACEUTICALS UK LTD,40805211,4.14
Department of Health,St. Helens&Knowsley Hospitals NHS Trust,31/01/2022,Stocks Raw Materials,Balance Sheet,NOVARTIS PHARMACEUTICALS UK LTD,40805211,4.49
Department of Health,St. Helens&Knowsley Hospitals NHS Trust,31/01/2022,Stocks Raw Materials,Balance Sheet,NOVARTIS PHARMACEUTICALS UK LTD,40884475,"19,766.88"
Department of Health,St. Helens&Knowsley Hospitals NHS Trust,31/01/2022,Stocks Raw Materials,Balance Sheet,NOVARTIS PHARMACEUTICALS UK LTD,40884475,"3,326.40"
Department of Health,St. Helens&Knowsley Hospitals NHS Trust,31/01/2022,Stocks Raw Materials,Balance Sheet,NOVARTIS PHARMACEUTICALS UK LTD,40884475,66.13
Department of Health,St. Helens&Knowsley Hospitals NHS Trust,31/01/2022,Stocks Raw Materials,Balance Sheet,NOVARTIS PHARMACEUTICALS UK LTD,40884475,11.02
Department of Health,St. Helens&Knowsley Hospitals NHS Trust,31/01/2022,Stocks Raw Materials,Balance Sheet,NOVARTIS PHARMACEUTICALS UK LTD,40884475,"3,231.32"
Department of Health,St. Helens&Knowsley Hospitals NHS Trust,31/01/2022,Stocks Raw Materials,Balance Sheet,NOVARTIS PHARMACEUTICALS UK LTD,40884475,6.73
Department of Health,St. Helens&Knowsley Hospitals NHS Trust,31/01/2022,Stocks Raw Materials,Balance Sheet,ALLIANCE HEALTHCARE DISTRIBUTION LTD,40884595,"20,537.26"
Department of Health,St. Helens&Knowsley Hospitals NHS Trust,31/01/2022,Stocks Raw Materials,Balance Sheet,ALLIANCE HEALTHCARE DISTRIBUTION LTD,40884595,"78,468.74"
Department of Health,St. Helens&Knowsley Hospitals NHS Trust,31/01/2022,Stocks Raw Materials,Balance Sheet,AAH PHARMACEUTICALS LTD,40884596,"17,813.16"
Department of Health,St. Helens&Knowsley Hospitals NHS Trust,31/01/2022,Stocks Raw Materials,Balance Sheet,AAH PHARMACEUTICALS LTD,40884596,"71,266.15"
Department of Health,St. Helens&Knowsley Hospitals NHS Trust,31/01/2022,Stocks Raw Materials,Balance Sheet,BAXTER HEALTHCARE LTD,40890784,"30,391.80"
Department of Health,St. Helens&Knowsley Hospitals NHS Trust,31/01/2022,Stocks Raw Materials,Balance Sheet,ALLOGA UK LTD,40952742,"40,437.28"
Department of Health,St. Helens&Knowsley Hospitals NHS Trust,31/01/2022,Stocks Raw Materials,Balance Sheet,AAH PHARMACEUTICALS LTD,40952743,"33,814.86"
Department of Health,St. Helens&Knowsley Hospitals NHS Trust,31/01/2022,Stocks Raw Materials,Balance Sheet,PHOENIX HEALTHCARE DISTRIBUTION LTD,40952744,"7,678.36"
Department of Health,St. Helens&Knowsley Hospitals NHS Trust,31/01/2022,Stocks Raw Materials,Balance Sheet,PHOENIX HEALTHCARE DISTRIBUTION LTD,40952744,"37,157.55"
Department of Health,St. Helens&Knowsley Hospitals NHS Trust,31/01/2022,Stocks Raw Materials,Balance Sheet,HEALTHCARE AT HOME LTD,40966201,"68,576.94"
Department of Health,St. Helens&Knowsley Hospitals NHS Trust,31/01/2022,Stocks Raw Materials,Balance Sheet,HEALTHCARE AT HOME LTD,40966202,"84,032.88"
Department of Health,St. Helens&Knowsley Hospitals NHS Trust,31/01/2022,Stocks Raw Materials,Balance Sheet,HEALTHCARE AT HOME LTD,41031922,"79,783.20"
Department of Health,St. Helens&Knowsley Hospitals NHS Trust,31/01/2022,Stocks Raw Materials,Balance Sheet,ALLIANCE HEALTHCARE DISTRIBUTION LTD,41031923,"58,030.64"
Department of Health,St. Helens&Knowsley Hospitals NHS Trust,31/01/2022,Stocks Raw Materials,Balance Sheet,HEALTHCARE AT HOME LTD,41031924,"131,377.54"
Department of Health,St. Helens&Knowsley Hospitals NHS Trust,31/01/2022,Various Items,Various Areas,SUPPLY CHAIN COORDINATION LIMITED,40771928,"275,624.96"
Department of Health,St. Helens&Knowsley Hospitals NHS Trust,31/01/2022,Various Items,Various Areas,SUPPLY CHAIN COORDINATION LIMITED,40853010,"87,798.08"
Department of Health,St. Helens&Knowsley Hospitals NHS Trust,31/01/2022,Various Items,Various Areas,SUPPLY CHAIN COORDINATION LIMITED,40853039,"133,582.61"
Department of Health,St. Helens&Knowsley Hospitals NHS Trust,31/01/2022,Various Items,Various Areas,SUPPLY CHAIN COORDINATION LIMITED,40998086,"186,588.82"
Department of Health,St. Helens&Knowsley Hospitals NHS Trust,31/01/2022,Water,RATES/WATER WHISTON,WATER PLUS LTD,40964788,"33,669.55"
